Workbook

Sheet Base Bid - old (hidden)
A1: Base Bid Schedule
A2: City of Arlington and Stillaguamish Tribe
A3: Gifford Ave Sidewalks
A4: NOTE: All entries must be typed or written in ink. Unit prices for all items, all extensions, lump sum prices, and the total amount of bid must be shown. Show unit prices in both words and figures; where conflicts occur, the written words will take precedence and be used to determine the total amount bid. The total bid amount shall include all work as included in the contract documents and sales tax.
A7: Item No. | B7: DESCRIPTION | C7: WSDOT Standard Item No. | D7: WSDOT Spec Ref Sect | E7: Approx. Quantity | F7: UNIT | G7: Unit Price | H7: Total Price | I7: Unit Price | J7: Total Price
B9: PREPARATION
A10: 1 | B10: =VLOOKUP(C10,'Detail List'!$A$2:$G$5000,3,FALSE) -> MOBILIZATION | C10: 0001 | D10: 1-09.7 | E10: 1 | F10: =VLOOKUP(C10,'Detail List'!$A$2:$I$5000,2,FALSE) -> L.S. | G10: $ | H10: $ | I10: 3000 | J10: =E10*I10 -> 3000
B11: (Unit Price in Words) ___________________________________________________
A12: 2 | B12: =VLOOKUP(C12,'Detail List'!$A$2:$G$5000,3,FALSE) -> REMOVAL OF STRUCTURE AND OBSTRUCTION | C12: 0050 | D12: 2-02.4 | E12: 1 | F12: =VLOOKUP(C12,'Detail List'!$A$2:$I$5000,2,FALSE) -> L.S. | G12: $ | H12: $ | I12: 7350 | J12: =E12*I12 -> 7350
B13: (Unit Price in Words) ___________________________________________________
A14: 3 | B14: SAWCUT EXISTING PAVEMENT | C14: ---- | D14: GSP | E14: 710 | F14: L.F. | G14: $ | H14: $ | I14: 2.4 | J14: =E14*I14 -> 1704
B15: (Unit Price in Words) ___________________________________________________
B17: GRADING
A18: 4 | B18: =VLOOKUP(C18,'Detail List'!$A$2:$G$5000,3,FALSE) -> ROADWAY EXCAVATION INCL. HAUL | C18: 0310 | D18: 2-03.4 | E18: 310 | F18: =VLOOKUP(C18,'Detail List'!$A$2:$I$5000,2,FALSE) -> C.Y. | G18: $ | H18: $ | I18: 24 | J18: =E18*I18 -> 7440
B19: (Unit Price in Words) ___________________________________________________
B21: SURFACING
A22: 5 | B22: =VLOOKUP(C22,'Detail List'!$A$2:$G$5000,3,FALSE) -> CRUSHED SURFACING BASE COURSE | C22: 5100 | D22: 4-04.4 | E22: 20 | F22: =VLOOKUP(C22,'Detail List'!$A$2:$I$5000,2,FALSE) -> TON | G22: $ | H22: $ | I22: 32 | J22: =E22*I22 -> 640
B23: (Unit Price in Words) ___________________________________________________
B25: HOT MIX ASPHALT
A26: 6 | B26: =VLOOKUP(C26,'Detail List'!$A$2:$G$5000,3,FALSE) -> COMMERCIAL HMA | C26: 5875 | D26: 5-04.4 | E26: 24 | F26: =VLOOKUP(C26,'Detail List'!$A$2:$I$5000,2,FALSE) -> TON | G26: $ | H26: $ | I26: 210 | J26: =E26*I26 -> 5040
B27: (Unit Price in Words) ___________________________________________________
B29: EROSION CONTROL AND PLANTING
A30: 7 | B30: TOPSOIL TYPE B | C30: 6405 | D30: 8-02.4 | E30: 25 | F30: =VLOOKUP(C30,'Detail List'!$A$2:$I$5000,2,FALSE) -> C.Y. | G30: $ | H30: $ | I30: 37.5 | J30: =E30*I30 -> 937.5
B31: (Unit Price in Words) ___________________________________________________
A32: 8 | B32: =VLOOKUP(C32,'Detail List'!$A$2:$G$5000,3,FALSE) -> SEEDING, FERTILIZING, AND MULCHING | C32: 6414 | D32: 8-02.4 | E32: 0.1 | F32: =VLOOKUP(C32,'Detail List'!$A$2:$I$5000,2,FALSE) -> ACRE | G32: $ | H32: $ | I32: 2250 | J32: =E32*I32 -> 225
B33: (Unit Price in Words) ___________________________________________________
A34: 9 | B34: =VLOOKUP(C34,'Detail List'!$A$2:$G$5000,3,FALSE) -> INLET PROTECTION | C34: 6471 | D34: 8-02.4 | E34: 6 | F34: =VLOOKUP(C34,'Detail List'!$A$2:$I$5000,2,FALSE) -> EACH | G34: $ | H34: $ | I34: 102 | J34: =E34*I34 -> 612
B35: (Unit Price in Words) ___________________________________________________
A36: 10 | B36: =VLOOKUP(C36,'Detail List'!$A$2:$G$5000,3,FALSE) -> EROSION/WATER POLLUTION CONTROL | C36: 6490 | D36: 8-02.4 | E36: 500 | F36: =VLOOKUP(C36,'Detail List'!$A$2:$I$5000,2,FALSE) -> EST. | G36: $ | H36: $ | I36: 1 | J36: =E36*I36 -> 500
B37: (Unit Price in Words) ___________________________________________________
B39: TRAFFIC
A40: 11 | B40: =VLOOKUP(C40,'Detail List'!$A$2:$G$5000,3,FALSE) -> PROJECT TEMPORARY TRAFFIC CONTROL | C40: 6971 | D40: 1-10.4 | E40: 1 | F40: =VLOOKUP(C40,'Detail List'!$A$2:$I$5000,2,FALSE) -> L.S. | G40: $ | H40: $ | I40: 4600 | J40: =E40*I40 -> 4600
B41: (Unit Price in Words) ___________________________________________________
B43: OTHER
A44: 12 | B44: ADJUST WATER VALVE BOX | C44: ---- | D44: GSP | E44: 7 | F44: EACH | G44: $ | H44: $ | I44: 60 | J44: =E44*I44 -> 420
B45: (Unit Price in Words) ___________________________________________________
A46: 13 | B46: =VLOOKUP(C46,'Detail List'!$A$2:$G$5000,3,FALSE) -> CEMENT CONC. SIDEWALK | C46: 7055 | D46: 5-05.4 | E46: 765 | F46: =VLOOKUP(C46,'Detail List'!$A$2:$I$5000,2,FALSE) -> S.Y. | G46: $ | H46: $ | I46: 35 | J46: =E46*I46 -> 26775
B47: (Unit Price in Words) ___________________________________________________
B48: =VLOOKUP(C48,'Detail List'!$A$2:$G$5000,3,FALSE) -> DETECTABLE WARNING SURFACE | C48: 7054 | E48: 4 | F48: EACH | G48: $ | H48: $ | I48: 700 | J48: =E48*I48 -> 2800
B49: (Unit Price in Words) ___________________________________________________
A50: 14 | B50: CEMENT CONC. SIDEWALK RAMP TYPE 2 | C50: 7058 | D50: 5-05.4 | E50: 2 | F50: =VLOOKUP(C50,'Detail List'!$A$2:$I$5000,2,FALSE) -> EACH | G50: $ | H50: $ | I50: 1600 | J50: =E50*I50 -> 3200
B51: (Unit Price in Words) ___________________________________________________
A52: 15 | B52: CEMENT CONC. SIDEWALK RAMP TYPE 5 | C52: 7058 | D52: 5-05.4 | E52: 2 | F52: =VLOOKUP(C52,'Detail List'!$A$2:$I$5000,2,FALSE) -> EACH | G52: $ | H52: $ | I52: 1700 | J52: =E52*I52 -> 3400
B53: (Unit Price in Words) ___________________________________________________
A54: 16 | B54: CEMENT CONC. DRIVEWAY ENTRANCE TYPE 1 | C54: 7059 | D54: 5-05.4 | E54: 5 | F54: =VLOOKUP(C54,'Detail List'!$A$2:$I$5000,2,FALSE) -> S.Y. | G54: $ | H54: $ | I54: 1200 | J54: =E54*I54 -> 6000
B55: (Unit Price in Words) ___________________________________________________
A56: 17 | B56: CEMENT CONC. DRIVEWAY ENTRANCE TYPE 2 | C56: 7059 | D56: 5-05.4 | E56: 6 | F56: =VLOOKUP(C56,'Detail List'!$A$2:$I$5000,2,FALSE) -> S.Y. | G56: $ | H56: $ | I56: 1450 | J56: =E56*I56 -> 8700
B57: (Unit Price in Words) ___________________________________________________
A58: 18 | B58: =VLOOKUP(C58,'Detail List'!$A$2:$G$5000,3,FALSE) -> CONSTRUCTION GEOTEXTILE FOR UNDERGROUND DRAINAGE | C58: 7550 | D58: 2-12.4 | E58: 1035 | F58: =VLOOKUP(C58,'Detail List'!$A$2:$I$5000,2,FALSE) -> S.Y. | G58: $ | H58: $ | I58: 4 | J58: =E58*I58 -> 4140
B59: (Unit Price in Words) ___________________________________________________
A60: 19 | B60: =VLOOKUP(C60,'Detail List'!$A$2:$G$5000,3,FALSE) -> TRIMMING AND CLEANUP | C60: 7490 | D60: 2-11.4 | E60: 1 | F60: =VLOOKUP(C60,'Detail List'!$A$2:$I$5000,2,FALSE) -> L.S. | G60: $ | H60: $ | I60: 1100 | J60: =E60*I60 -> 1100
B61: (Unit Price in Words) ___________________________________________________
A62: 20 | B62: =VLOOKUP(C62,'Detail List'!$A$2:$G$5000,3,FALSE) -> FORCE ACCOUNT | C62: 7715 | D62: GSP | E62: 1 | F62: =VLOOKUP(C62,'Detail List'!$A$2:$I$5000,2,FALSE) -> EST. | G62: 1000 | H62: =E62*G62 -> 1000 | I62: 1000 | J62: =E62*I62 -> 1000
B63: (Unit Price in Words) ___________________________________________________
A64: 21 | B64: =VLOOKUP(C64,'Detail List'!$A$2:$G$5000,3,FALSE) -> REIMBURSEMENT FOR THIRD PARTY DAMAGE | C64: 7725 | D64: 1-07.13(4) | E64: 1 | F64: =VLOOKUP(C64,'Detail List'!$A$2:$I$5000,2,FALSE) -> EST. | G64: 500 | H64: =E64*G64 -> 500 | I64: 500 | J64: =E64*I64 -> 500
B65: (Unit Price in Words) ___________________________________________________
A66: 22 | B66: =VLOOKUP(C66,'Detail List'!$A$2:$G$5000,3,FALSE) -> SPCC PLAN | C66: 7736 | D66: 1-07.15(1) | E66: 1 | F66: =VLOOKUP(C66,'Detail List'!$A$2:$I$5000,2,FALSE) -> L.S. | G66: $ | H66: $ | I66: 750 | J66: =E66*I66 -> 750
B67: (Unit Price in Words) ___________________________________________________
G68: Total Bid Amount | H68: $ | I68: Subtototal | J68: =SUM(J8:J66) -> 90833.5
I69: Contingency | J69: =95000-J68 -> 4166.5
I70: TOTAL | J70: =SUM(J68:J69) -> 95000

Sheet Summary
A1: Engineer's Estimate | E1: Reece Bid
A3: Airport Blvd Phase I Estimate Costs | E3: Airport Blvd Phase I Estimate Costs
A5: Roadway | B5: Base Bid | C5: ='Base Bid - Nontax'!J100 -> 818000 | E5: Roadway | F5: Base Bid | G5: 612405.8
A6: Water | B6: Base Bid | C6: ='Base Bid - Tax'!L58 -> 107412.5025 | E6: Water | F6: Base Bid | G6: ='Base Bid - Tax'!P58 -> 94288.692
A7: Sewer | B7: Base Bid | C7: ='Base Bid - Tax'!M58 -> 84587.4975 | E7: Sewer | F7: Base Bid | G7: ='Base Bid - Tax'!Q58 -> 94837.122
A8: Overlay | B8: Alternate 1 | C8: ='Add Alt 1 - Nontax'!J21 -> 56600 | E8: Overlay | F8: Alternate 1 | G8: 41642.2
A9: Curb | B9: Alternate 2 | C9: ='Add Alt 2 - Nontax'!J19 -> 132000 | E9: Curb | F9: Alternate 2 | G9: 58820
A10: Landscaping | B10: Alternate 3 | C10: ='Add Alt 3 - Nontax'!J55 -> 479000 | E10: Landscaping | F10: Alternate 3 | G10: 241959.8
E11: Change Order - 1 | G11: 153481.325
A12: GRAND TOTAL | C12: =SUM(C5:C10) -> 1677600
E13: GRAND TOTAL | G13: =SUM(G5:G11) -> 1297434.939
A17: Funding | E17: Funding
A19: PSRC STP Grant | C19: 452000 | E19: PSRC STP Grant | G19: 452000
A20: Airport Fund | C20: 475000 | E20: Airport Fund | G20: 475000
A21: COA Water Utility | C21: 90000 | E21: COA Water Utility | G21: =G6 -> 94288.692
A22: COA Sewer Utility | C22: 84000 | E22: COA Sewer Utility | G22: =G13-SUM(G19:G21) -> 276146.247
A23: COA Transpo Fund | C23: =1293000-SUM(C19:C22) -> 192000 | E23: COA Transpo Fund | G23: 0
A25: Total Funding | C25: =SUM(C18:C24) -> 1293000 | E25: Total Funding | G25: =SUM(G18:G24) -> 1297434.939

Sheet Base Bid - Nontax
A1: Base Bid Schedule - Roadway
A2: City of Arlington
A3: Airport Blvd Phase 1A
A4: NOTE: All entries must be typed or written in ink. Unit prices for all items, all extensions, lump sum prices, and the total amount of bid must be shown. Show unit prices in both words and figures; where conflicts occur, the written words will take precedence and be used to determine the total amount bid. The total bid amount shall include all work as included in the contract documents and applicable tax.
J6: =J100 -> 818000
A7: Item No. | B7: DESCRIPTION | C7: WSDOT Standard Item No. | D7: WSDOT Spec Ref Sect | E7: Approx. Quantity | F7: UNIT | G7: Unit Price | H7: Total Price | I7: Unit Price | J7: Total Price
B9: PREPARATION
A10: 101 | B10: =VLOOKUP(C10,'Detail List'!$A$2:$G$5000,3,FALSE) -> MOBILIZATION | C10: 0001 | D10: 1-09.7 | E10: 1 | F10: =VLOOKUP(C10,'Detail List'!$A$2:$I$5000,2,FALSE) -> L.S. | G10: $ | H10: $ | I10: 55000 | J10: =E10*I10 -> 55000
B11: (Unit Price in Words) ___________________________________________________
A12: 102 | B12: =VLOOKUP(C12,'Detail List'!$A$2:$G$5000,3,FALSE) -> REMOVAL OF STRUCTURE AND OBSTRUCTION | C12: 0050 | D12: 2-02.5 | E12: 1 | F12: =VLOOKUP(C12,'Detail List'!$A$2:$I$5000,2,FALSE) -> L.S. | G12: $ | H12: $ | I12: 1500 | J12: =E12*I12 -> 1500
B13: (Unit Price in Words) ___________________________________________________
A14: 103 | B14: =VLOOKUP(C14,'Detail List'!$A$2:$G$5000,3,FALSE) -> REMOVING ASPHALT CONC. PAVEMENT | C14: 0120 | D14: GSP | E14: =ROUND((1*(4048-2100)+(40*20))/9,-1) -> 310 | F14: =VLOOKUP(C14,'Detail List'!$A$2:$I$5000,2,FALSE) -> S.Y. | G14: $ | H14: $ | I14: 3.5 | J14: =E14*I14 -> 1085
B15: (Unit Price in Words) ___________________________________________________
A16: 104 | B16: =VLOOKUP(C16,'Detail List'!$A$2:$G$5000,3,FALSE) -> CLEARING AND GRUBBING | C16: 0025 | D16: 2-01.5 | E16: =ROUND((Quantities!C3+Quantities!C12*9+Quantities!C53)/43560,1) -> 4 | F16: =VLOOKUP(C16,'Detail List'!$A$2:$I$5000,2,FALSE) -> ACRE | G16: $ | H16: $ | I16: 2000 | J16: =E16*I16 -> 8000
B17: (Unit Price in Words) ___________________________________________________
A18: 105 | B18: SAWCUT EXISTING PAVEMENT | C18: --- | D18: SP | E18: =Quantities!C29+Quantities!C31 -> 2124.42 | F18: L.F. | G18: $ | H18: $ | I18: 1.5 | J18: =E18*I18 -> 3186.63
B19: (Unit Price in Words) ___________________________________________________
B21: EROSION CONTROL AND ROADSIDE RESTORATION
A22: 107 | B22: =VLOOKUP(C22,'Detail List'!$A$2:$G$5000,3,FALSE) -> WATTLE | C22: 6479 | D22: 8-01.5 | E22: =80*10*3 -> 2400 | F22: =VLOOKUP(C22,'Detail List'!$A$2:$I$5000,2,FALSE) -> L.F. | G22: $ | H22: $ | I22: 5 | J22: =E22*I22 -> 12000
B23: (Unit Price in Words) ___________________________________________________
A24: 108 | B24: =VLOOKUP(C24,'Detail List'!$A$2:$G$5000,3,FALSE) -> INLET PROTECTION | C24: 6471 | D24: 8-01.5 | E24: 14 | F24: =VLOOKUP(C24,'Detail List'!$A$2:$I$5000,2,FALSE) -> EACH | G24: $ | H24: $ | I24: 75 | J24: =E24*I24 -> 1050
B25: (Unit Price in Words) ___________________________________________________
A26: 109 | B26: =VLOOKUP(C26,'Detail List'!$A$2:$G$5000,3,FALSE) -> STABILIZED CONSTRUCTION ENTRANCE | C26: 6468 | D26: 8-01.5 | E26: 170 | F26: =VLOOKUP(C26,'Detail List'!$A$2:$I$5000,2,FALSE) -> S.Y. | G26: $ | H26: $ | I26: 5 | J26: =E26*I26 -> 850
B27: (Unit Price in Words) ___________________________________________________
A28: 110 | B28: =VLOOKUP(C28,'Detail List'!$A$2:$G$5000,3,FALSE) -> EROSION/WATER POLLUTION CONTROL | C28: 6490 | D28: 8-01.5 | E28: 1 | F28: L.S. | G28: $ | H28: $ | I28: 2000 | J28: =E28*I28 -> 2000
B29: (Unit Price in Words) ___________________________________________________
A30: 111 | B30: =VLOOKUP(C30,'Detail List'!$A$2:$G$5000,3,FALSE) -> SEEDING AND FERTILIZING | C30: 6412 | D30: 8-01.5 | E30: =ROUND(Quantities!C53*1.5/43560,1) -> 1.1 | F30: =VLOOKUP(C30,'Detail List'!$A$2:$I$5000,2,FALSE) -> ACRE | G30: $ | H30: $ | I30: 3000 | J30: =E30*I30 -> 3300
B31: (Unit Price in Words) ___________________________________________________
A32: 112 | B32: =VLOOKUP(C32,'Detail List'!$A$2:$G$5000,3,FALSE) -> FINE COMPOST | C32: 6447 | D32: 8-01.5 | E32: 500 | F32: =VLOOKUP(C32,'Detail List'!$A$2:$I$5000,2,FALSE) -> C.Y. | G32: $ | H32: $ | I32: 35 | J32: =E32*I32 -> 17500
B33: (Unit Price in Words) ___________________________________________________
A34: 113 | B34: =VLOOKUP(C34,'Detail List'!$A$2:$G$5000,3,FALSE) -> TOPSOIL TYPE B | C34: 6410 | D34: 8-01.5 | E34: =ROUND(Quantities!C63+Quantities!F56,-1) -> 1110 | F34: =VLOOKUP(C34,'Detail List'!$A$2:$I$5000,2,FALSE) -> C.Y. | G34: $ | H34: $ | I34: 8 | J34: =E34*I34 -> 8880
B35: (Unit Price in Words) ___________________________________________________
A36: 114 | B36: BIORETENTION SOIL MIX | C36: -- | D36: GSP | E36: =ROUND(Quantities!C55,-1) -> 1770 | F36: C.Y. | G36: $ | H36: $ | I36: 8 | J36: =E36*I36 -> 14160
B37: (Unit Price in Words) ___________________________________________________
B39: GRADING
A40: 115 | B40: =VLOOKUP(C40,'Detail List'!$A$2:$G$5000,3,FALSE) -> ROADWAY EXCAVATION INCL. HAUL | C40: 0310 | D40: 2-03.5 | E40: =ROUNDUP(Quantities!F47,-1) -> 3780 | F40: =VLOOKUP(C40,'Detail List'!$A$2:$I$5000,2,FALSE) -> C.Y. | G40: $ | H40: $ | I40: 16 | J40: =E40*I40 -> 60480
B41: (Unit Price in Words) ___________________________________________________
B43: SURFACING
A44: 116 | B44: =VLOOKUP(C44,'Detail List'!$A$2:$G$5000,3,FALSE) -> CRUSHED SURFACING BASE COURSE | C44: 5100 | D44: 4-04.5 | E44: =Quantities!C22 -> 5981.769444 | F44: =VLOOKUP(C44,'Detail List'!$A$2:$I$5000,2,FALSE) -> TON | G44: $ | H44: $ | I44: 20 | J44: =E44*I44 -> 119635.3889
B45: (Unit Price in Words) ___________________________________________________
A46: 117 | B46: =VLOOKUP(C46,'Detail List'!$A$2:$G$5000,3,FALSE) -> CRUSHED SURFACING TOP COURSE | C46: 5120 | D46: 4-04.5 | E46: =Quantities!C25 -> 321.8229167 | F46: =VLOOKUP(C46,'Detail List'!$A$2:$I$5000,2,FALSE) -> TON | G46: $ | H46: $ | I46: 24 | J46: =E46*I46 -> 7723.75
B47: (Unit Price in Words) ___________________________________________________
A48: 118 | B48: =VLOOKUP(C48,'Detail List'!$A$2:$G$5000,3,FALSE) -> QUARRY SPALLS | C48: 1086 | D48: 4-04.5 | E48: =Quantities!C57 -> 1462.150926 | F48: =VLOOKUP(C48,'Detail List'!$A$2:$I$5000,2,FALSE) -> TON | G48: $ | H48: $ | I48: 24 | J48: =E48*I48 -> 35091.62222
B49: (Unit Price in Words) ___________________________________________________
B51: HOT MIX ASPHALT
A52: 119 | B52: =VLOOKUP(C52,'Detail List'!$A$2:$G$5000,3,FALSE) -> LONGITUDINAL JOINT SEAL | C52: 6514 | D52: 5-04.5 | E52: =Quantities!C29 -> 1988.42 | F52: =VLOOKUP(C52,'Detail List'!$A$2:$I$5000,2,FALSE) -> L.F. | G52: $ | H52: $ | I52: 0.9 | J52: =E52*I52 -> 1789.578
B53: (Unit Price in Words) ___________________________________________________
A54: 120 | B54: HMA FOR PAVEMENT CL. 1/2 IN. PG 64-22 | C54: 5739 | D54: 5-04.5 | E54: =Quantities!C8 -> 2927.791778 | F54: =VLOOKUP(C54,'Detail List'!$A$2:$I$5000,2,FALSE) -> TON | G54: $ | H54: $ | I54: 80 | J54: =E54*I54 -> 234223.3422
B55: (Unit Price in Words) ___________________________________________________
B57: TRAFFIC
A58: 121 | B58: =VLOOKUP(C58,'Detail List'!$A$2:$G$5000,3,FALSE) -> PAINT LINE | C58: 6806 | D58: 8-22.5 | E58: =Quantities!C81 -> 14100 | F58: =VLOOKUP(C58,'Detail List'!$A$2:$I$5000,2,FALSE) -> L.F. | G58: $ | H58: $ | I58: 0.55 | J58: =E58*I58 -> 7755
B59: (Unit Price in Words) ___________________________________________________
A60: 122 | B60: =VLOOKUP(C60,'Detail List'!$A$2:$G$5000,3,FALSE) -> PLASTIC CROSSWALK LINE | C60: 6857 | D60: 8-22.5 SP | E60: =ROUND(Quantities!C89,-1) -> 1440 | F60: =VLOOKUP(C60,'Detail List'!$A$2:$I$5000,2,FALSE) -> S.F. | G60: $ | H60: $ | I60: 3 | J60: =E60*I60 -> 4320
B61: (Unit Price in Words) ___________________________________________________
A62: 123 | B62: =VLOOKUP(C62,'Detail List'!$A$2:$G$5000,3,FALSE) -> PLASTIC STOP LINE | C62: 6859 | D62: 8-22.5 | E62: =2*13 -> 26 | F62: =VLOOKUP(C62,'Detail List'!$A$2:$I$5000,2,FALSE) -> L.F. | G62: $ | H62: $ | I62: 5.13 | J62: =E62*I62 -> 133.38
B63: (Unit Price in Words) ___________________________________________________
A64: 124 | B64: =VLOOKUP(C64,'Detail List'!$A$2:$G$5000,3,FALSE) -> PLASTIC TRAFFIC ARROW | C64: 6833 | D64: 8-22.5 | E64: 18 | F64: =VLOOKUP(C64,'Detail List'!$A$2:$I$5000,2,FALSE) -> EACH | G64: $ | H64: $ | I64: 65 | J64: =E64*I64 -> 1170
B65: (Unit Price in Words) ___________________________________________________
A66: 125 | B66: =VLOOKUP(C66,'Detail List'!$A$2:$G$5000,3,FALSE) -> PLASTIC BICYCLE LANE SYMBOL | C66: 6867 | D66: 8-22.5 | E66: 21 | F66: =VLOOKUP(C66,'Detail List'!$A$2:$I$5000,2,FALSE) -> EACH | G66: $ | H66: $ | I66: 65 | J66: =E66*I66 -> 1365
B67: (Unit Price in Words) ___________________________________________________
A68: 126 | B68: =VLOOKUP(C68,'Detail List'!$A$2:$G$5000,3,FALSE) -> PERMANENT SIGNING | C68: 6890 | D68: 8-21.5 | E68: 1 | F68: =VLOOKUP(C68,'Detail List'!$A$2:$I$5000,2,FALSE) -> L.S. | G68: $ | H68: $ | I68: 5000 | J68: =E68*I68 -> 5000
B69: (Unit Price in Words) ___________________________________________________
A70: 127 | B70: =VLOOKUP(C70,'Detail List'!$A$2:$G$5000,3,FALSE) -> PROJECT TEMPORARY TRAFFIC CONTROL | C70: 6971 | D70: 1-10.5 | E70: 1 | F70: =VLOOKUP(C70,'Detail List'!$A$2:$I$5000,2,FALSE) -> L.S. | G70: $ | H70: $ | I70: 5000 | J70: =E70*I70 -> 5000
B71: (Unit Price in Words) ___________________________________________________
B73: OTHER
A74: 128 | B74: =VLOOKUP(C74,'Detail List'!$A$2:$I$5000,3,FALSE) -> ROADWAY SURVEYING | C74: 7038 | D74: 7-05.5 | E74: 1 | F74: =VLOOKUP(C74,'Detail List'!$A$2:$I$5000,2,FALSE) -> L.S. | G74: $ | H74: $ | I74: 8000 | J74: =E74*I74 -> 8000
B75: (Unit Price in Words) ___________________________________________________
A76: 129 | B76: =VLOOKUP(C76,'Detail List'!$A$2:$G$5000,3,FALSE) -> MONUMENT CASE AND COVER | C76: 7045 | D76: 8-13.5 | E76: 5 | F76: =VLOOKUP(C76,'Detail List'!$A$2:$I$5000,2,FALSE) -> EACH | G76: $ | H76: $ | I76: 200 | J76: =E76*I76 -> 1000
B77: (Unit Price in Words) ___________________________________________________
A78: 130 | B78: =VLOOKUP(C78,'Detail List'!$A$2:$G$5000,3,FALSE) -> CEMENT CONC. SIDEWALK | C78: 7055 | D78: 8-14.5 | E78: =Quantities!C12 -> 3125 | F78: =VLOOKUP(C78,'Detail List'!$A$2:$I$5000,2,FALSE) -> S.Y. | G78: $ | H78: $ | I78: 37 | J78: =E78*I78 -> 115625
B79: (Unit Price in Words) ___________________________________________________
A80: 131 | B80: CEMENT CONC. CURB RAMP TYPE COMBINATION | C80: 7058 | D80: 8-14.5 | E80: 7 | F80: =VLOOKUP(C80,'Detail List'!$A$2:$I$5000,2,FALSE) -> EACH | G80: $ | H80: $ | I80: 1600 | J80: =E80*I80 -> 11200
B81: (Unit Price in Words) ___________________________________________________
A82: 132 | B82: CEMENT CONC. CURB RAMP TYPE PARALLEL | C82: 7058 | D82: 8-14.5 | E82: 1 | F82: =VLOOKUP(C82,'Detail List'!$A$2:$I$5000,2,FALSE) -> EACH | G82: $ | H82: $ | I82: 1600 | J82: =E82*I82 -> 1600
B83: (Unit Price in Words) ___________________________________________________
A84: 133 | B84: =VLOOKUP(C84,'Detail List'!$A$2:$G$5000,3,FALSE) -> TRIMMING AND CLEANUP | C84: 7490 | D84: 2-11.5 | E84: 1 | F84: =VLOOKUP(C84,'Detail List'!$A$2:$I$5000,2,FALSE) -> L.S. | G84: $ | H84: $ | I84: 2000 | J84: =E84*I84 -> 2000
B85: (Unit Price in Words) ___________________________________________________
A86: 134 | B86: =VLOOKUP(C86,'Detail List'!$A$2:$G$5000,3,FALSE) -> CONSTRUCTION GEOTEXTILE FOR UNDERGROUND DRAINAGE | C86: 7550 | D86: 7-04 | E86: =ROUND((Quantities!C53+2*1.5*Quantities!C51)/9,-1) -> 5170 | F86: =VLOOKUP(C86,'Detail List'!$A$2:$I$5000,2,FALSE) -> S.Y. | G86: $ | H86: $ | I86: 2.5 | J86: =E86*I86 -> 12925
B87: (Unit Price in Words) ___________________________________________________
A88: 135 | B88: UNFORSEEN CONDITIONS FORCE ACCOUNT | C88: 7715 | D88: 1-09.6 | E88: 1 | F88: =VLOOKUP(C88,'Detail List'!$A$2:$I$5000,2,FALSE) -> EST. | G88: 20000 | H88: =E88*G88 -> 20000 | I88: =G88 -> 20000 | J88: =E88*I88 -> 20000
B89: (Unit Price in Words) ___________________________________________________
A90: 136 | B90: =VLOOKUP(C90,'Detail List'!$A$2:$G$5000,3,FALSE) -> REIMBURSEMENT FOR THIRD PARTY DAMAGE | C90: 7725 | D90: 1-07.13(4) | E90: 1 | F90: =VLOOKUP(C90,'Detail List'!$A$2:$I$5000,2,FALSE) -> EST. | G90: 500 | H90: =E90*G90 -> 500 | I90: =G90 -> 500 | J90: =E90*I90 -> 500
B91: (Unit Price in Words) ___________________________________________________
A92: 137 | B92: =VLOOKUP(C92,'Detail List'!$A$2:$G$5000,3,FALSE) -> SPCC PLAN | C92: 7736 | D92: 1-07.15(1) | E92: 1 | F92: =VLOOKUP(C92,'Detail List'!$A$2:$I$5000,2,FALSE) -> L.S. | G92: $ | H92: $ | I92: 500 | J92: =E92*I92 -> 500
B93: (Unit Price in Words) ___________________________________________________
A94: 138 | B94: RECORD DRAWINGS | C94: -- | D94: GSP, 1-05 | E94: 1 | F94: L.S. | I94: 1000 | J94: =E94*I94 -> 1000
B95: (Unit Price in Words) ___________________________________________________
A96: 139 | B96: =VLOOKUP(C96,'Detail List'!$A$2:$G$5000,3,FALSE) -> TYPE B PROGRESS SCHEDULE | C96: 7003 | D96: 1-08.3, SP | E96: 1 | F96: =VLOOKUP(C96,'Detail List'!$A$2:$I$5000,2,FALSE) -> L.S. | G96: $ | H96: $ | I96: 2000 | J96: =E96*I96 -> 2000
B97: (Unit Price in Words) ___________________________________________________
G98: TOTAL ROADWAY BASE BID | I98: Subtototal | J98: =SUM(J8:J97) -> 788548.6913
I99: Contingency | J99: =818000-J98 -> 29451.30867 | K99: =J99/J98 -> 0.03734875093
I100: TOTAL | J100: =SUM(J98:J99) -> 818000

Sheet Base Bid - Tax
A1: Base Bid Schedule - Utilities
A2: City of Arlington
A3: Airport Blvd Phase 1A
A4: NOTE: All entries must be typed or written in ink. Unit prices for all items, all extensions, lump sum prices, and the total amount of bid must be shown. Show unit prices in both words and figures; where conflicts occur, the written words will take precedence and be used to determine the total amount bid. The total bid amount shall include all work as included in the contract documents and sales tax.
J6: =J58 -> 192000 | O6: Reece Bid
A7: Item No. | B7: DESCRIPTION | C7: WSDOT Standard Item No. | D7: WSDOT Spec Ref Sect | E7: Approx. Quantity | F7: UNIT | G7: Unit Price | H7: Total Price | I7: Unit Price | J7: Total Price | L7: Water | M7: Sewer | P7: Water | Q7: Sewer
B9: PREPARATION
A10: 201 | B10: =VLOOKUP(C10,'Detail List'!$A$2:$G$5000,3,FALSE) -> MOBILIZATION | C10: 0001 | D10: 1-09.7 | E10: 1 | F10: =VLOOKUP(C10,'Detail List'!$A$2:$I$5000,2,FALSE) -> L.S. | G10: $ | H10: $ | I10: 12000 | J10: =E10*I10 -> 12000 | L10: =J10*0.5 -> 6000 | M10: =J10*0.5 -> 6000 | O10: 2900 | P10: =O10*0.5 -> 1450 | Q10: =O10*0.5 -> 1450
B11: (Unit Price in Words) ___________________________________________________
A12: 202 | B12: =VLOOKUP(C12,'Detail List'!$A$2:$G$5000,3,FALSE) -> REMOVAL OF STRUCTURE AND OBSTRUCTION | C12: 0050 | D12: 2-02.5 | E12: 1 | F12: =VLOOKUP(C12,'Detail List'!$A$2:$I$5000,2,FALSE) -> L.S. | G12: $ | H12: $ | I12: 2000 | J12: =E12*I12 -> 2000 | L12: =J12*0.5 -> 1000 | M12: =J12*0.5 -> 1000 | O12: 500 | P12: =O12*0.5 -> 250 | Q12: =O12*0.5 -> 250
B13: (Unit Price in Words) ___________________________________________________
B15: WATER
A16: 203 | B16: =VLOOKUP(C16,'Detail List'!$A$2:$G$5000,3,FALSE) -> HYDRANT ASSEMBLY | C16: 3846 | D16: 7-14.5 | E16: 2 | F16: =VLOOKUP(C16,'Detail List'!$A$2:$I$5000,2,FALSE) -> EACH | G16: $ | H16: $ | I16: 3800 | J16: =E16*I16 -> 7600 | L16: =J16 -> 7600 | O16: 7150 | P16: =O16 -> 7150
B17: (Unit Price in Words) ___________________________________________________
A18: 204 | B18: =VLOOKUP(C18,'Detail List'!$A$2:$G$5000,3,FALSE) -> RESETTING EXISTING HYDRANTS | C18: 3848 | D18: 7-14.5 | E18: 11 | F18: =VLOOKUP(C18,'Detail List'!$A$2:$I$5000,2,FALSE) -> EACH | G18: $ | H18: $ | I18: 2500 | J18: =E18*I18 -> 27500 | L18: =J18 -> 27500 | O18: 6930 | P18: =O18 -> 6930
B19: (Unit Price in Words) ___________________________________________________
A20: 205 | B20: =VLOOKUP(C20,'Detail List'!$A$2:$G$5000,3,FALSE) -> DUCTILE IRON PIPE FOR WATER MAIN 6 IN. DIAM. | C20: 3866 | D20: 7-09.5 | E20: 20 | F20: =VLOOKUP(C20,'Detail List'!$A$2:$I$5000,2,FALSE) -> L.F. | G20: $ | H20: $ | I20: 52 | J20: =E20*I20 -> 1040 | L20: =J20 -> 1040 | O20: 600 | P20: =O20 -> 600
B21: (Unit Price in Words) ___________________________________________________
A22: 206 | B22: =VLOOKUP(C22,'Detail List'!$A$2:$G$5000,3,FALSE) -> DUCTILE IRON PIPE FOR WATER MAIN 8 IN. DIAM. | C22: 3867 | D22: 7-09.5 | E22: =83+83 -> 166 | F22: =VLOOKUP(C22,'Detail List'!$A$2:$I$5000,2,FALSE) -> L.F. | G22: $ | H22: $ | I22: 50 | J22: =E22*I22 -> 8300 | L22: =J22 -> 8300 | O22: 15272 | P22: =O22 -> 15272
B23: (Unit Price in Words) ___________________________________________________
A24: 207 | B24: =VLOOKUP(C24,'Detail List'!$A$2:$G$5000,3,FALSE) -> DUCTILE IRON PIPE FOR WATER MAIN 12 IN. DIAM. | C24: 3869 | D24: 7-09.5 | E24: 250 | F24: =VLOOKUP(C24,'Detail List'!$A$2:$I$5000,2,FALSE) -> L.F. | G24: $ | H24: $ | I24: 60 | J24: =E24*I24 -> 15000 | L24: =J24 -> 15000 | O24: 17750 | P24: =O24 -> 17750
B25: (Unit Price in Words) ___________________________________________________
A26: 208 | B26: =VLOOKUP(C26,'Detail List'!$A$2:$G$5000,3,FALSE) -> GATE VALVE 6 IN. | C26: 6155 | D26: 7-12.5 | E26: 2 | F26: =VLOOKUP(C26,'Detail List'!$A$2:$I$5000,2,FALSE) -> EACH | G26: $ | H26: $ | I26: 1000 | J26: =E26*I26 -> 2000 | L26: =J26 -> 2000 | O26: 1900 | P26: =O26 -> 1900
B27: (Unit Price in Words) ___________________________________________________
A28: 209 | B28: =VLOOKUP(C28,'Detail List'!$A$2:$G$5000,3,FALSE) -> GATE VALVE 8 IN. | C28: 6160 | D28: 7-12.5 | E28: 6 | F28: =VLOOKUP(C28,'Detail List'!$A$2:$I$5000,2,FALSE) -> EACH | G28: $ | H28: $ | I28: 1100 | J28: =E28*I28 -> 6600 | L28: =J28 -> 6600 | O28: 7590 | P28: =O28 -> 7590
B29: (Unit Price in Words) ___________________________________________________
A30: 210 | B30: WATER SERVICE CONNECTION 2 IN. DIAM. (>30') | C30: 3858 | D30: 7-15.5, GSP | E30: 1 | F30: =VLOOKUP(C30,'Detail List'!$A$2:$I$5000,2,FALSE) -> EACH | G30: $ | H30: $ | I30: 850 | J30: =E30*I30 -> 850 | L30: =J30 -> 850 | O30: 1800 | P30: =O30 -> 1800
B31: (Unit Price in Words) ___________________________________________________
A32: 211 | B32: WATER SERVICE CONNECTION 2 IN. DIAM. (<30') | C32: 3858 | D32: 7-15.5, GSP | E32: 12 | F32: =VLOOKUP(C32,'Detail List'!$A$2:$I$5000,2,FALSE) -> EACH | G32: $ | H32: $ | I32: 830 | J32: =E32*I32 -> 9960 | L32: =J32 -> 9960 | O32: 11640 | P32: =O32 -> 11640
B33: (Unit Price in Words) ___________________________________________________
B35: SEWER
A36: 212 | B36: =VLOOKUP(C36,'Detail List'!$A$2:$G$5000,3,FALSE) -> CONNECTION TO DRAINAGE STRUCTURE | C36: 9605 | D36: 7-05.5 | E36: 2 | F36: =VLOOKUP(C36,'Detail List'!$A$2:$I$5000,2,FALSE) -> EACH | G36: $ | H36: $ | I36: 600 | J36: =E36*I36 -> 1200 | M36: =J36 -> 1200 | O36: 1260 | Q36: =O36 -> 1260
B37: (Unit Price in Words) ___________________________________________________
A38: 213 | B38: =VLOOKUP(C38,'Detail List'!$A$2:$G$5000,3,FALSE) -> PVC SANITARY SEWER PIPE 6 IN. DIAM. | C38: 3766 | D38: 7-17.5 | E38: 790 | F38: =VLOOKUP(C38,'Detail List'!$A$2:$I$5000,2,FALSE) -> L.F. | G38: $ | H38: $ | I38: 28 | J38: =E38*I38 -> 22120 | M38: =J38 -> 22120 | O38: 55300 | Q38: =O38 -> 55300
B39: (Unit Price in Words) ___________________________________________________
A40: 214 | B40: =VLOOKUP(C40,'Detail List'!$A$2:$G$5000,3,FALSE) -> PVC SANITARY SEWER PIPE 8 IN. DIAM. | C40: 3767 | D40: 7-17.5 | E40: 145 | F40: =VLOOKUP(C40,'Detail List'!$A$2:$I$5000,2,FALSE) -> L.F. | G40: $ | H40: $ | I40: 30 | J40: =E40*I40 -> 4350 | M40: =J40 -> 4350 | O40: 8700 | Q40: =O40 -> 8700
B41: (Unit Price in Words) ___________________________________________________
A42: 215 | B42: =VLOOKUP(C42,'Detail List'!$A$2:$G$5000,3,FALSE) -> PVC SANITARY SEWER PIPE 12 IN. DIAM. | C42: 3769 | D42: 7-17.5 | E42: 225 | F42: =VLOOKUP(C42,'Detail List'!$A$2:$I$5000,2,FALSE) -> L.F. | G42: $ | H42: $ | I42: 33 | J42: =E42*I42 -> 7425 | M42: =J42 -> 7425 | O42: 10800 | Q42: =O42 -> 10800
B43: (Unit Price in Words) ___________________________________________________
A44: 216 | B44: =VLOOKUP(C44,'Detail List'!$A$2:$G$5000,3,FALSE) -> MANHOLE 48 IN. DIAM. TYPE | C44: 7360 | D44: 7-17.5 | E44: 2 | F44: =VLOOKUP(C44,'Detail List'!$A$2:$I$5000,2,FALSE) -> EACH | G44: $ | H44: $ | I44: 3500 | J44: =E44*I44 -> 7000 | M44: =J44 -> 7000 | O44: 5800 | Q44: =O44 -> 5800
B45: (Unit Price in Words) ___________________________________________________
B47: OTHER
A48: 217 | B48: =VLOOKUP(C48,'Detail List'!$A$2:$G$5000,3,FALSE) -> SHORING OR EXTRA EXCAVATION CLASS B | C48: 7008 | D48: 2-09.5 | E48: =2*(E42+E40)*15+2*E38*((15+10)/2) -> 30850 | F48: =VLOOKUP(C48,'Detail List'!$A$2:$I$5000,2,FALSE) -> S.F. | G48: $ | H48: $ | I48: 0.75 | J48: =E48*I48 -> 23137.5 | M48: =J48 -> 23137.5 | O48: 617 | Q48: =O48 -> 617
B49: (Unit Price in Words) ___________________________________________________
A50: 218 | B50: ADJUST WATER VALVE BOX | C50: -- | D50: SP | E50: 46 | F50: EACH | G50: $ | H50: $ | I50: 200 | J50: =E50*I50 -> 9200 | L50: =J50 -> 9200 | O50: 14490 | P50: =O50 -> 14490
B51: (Unit Price in Words) ___________________________________________________
A52: 219 | B52: =VLOOKUP(C52,'Detail List'!$A$2:$I$5000,3,FALSE) -> ADJUST MANHOLE | C52: 3080 | D52: 7-05.5 | E52: 4 | F52: =VLOOKUP(C52,'Detail List'!$A$2:$I$5000,2,FALSE) -> EACH | G52: $ | H52: $ | I52: 450 | J52: =E52*I52 -> 1800 | M52: =J52 -> 1800 | O52: 3150 | Q52: =O52 -> 3150
B53: (Unit Price in Words) ___________________________________________________
G55: Subtotal Utilities Base Bid Amount | I55: Subtototal | J55: =SUM(J8:J54) -> 169082.5 | L55: =SUM(L8:L54) -> 95050 | M55: =SUM(M8:M54) -> 74032.5 | O55: =SUM(O9:O54) -> 174149 | P55: =SUM(P8:P54) -> 86822 | Q55: =SUM(Q8:Q54) -> 87327
G56: 8.6% Sales Tax | I56: 8.6% Sales Tax | J56: =J55*0.086 -> 14541.095 | L56: =L55*0.086 -> 8174.3 | M56: =M55*0.086 -> 6366.795 | O56: =O55*0.086 -> 14976.814 | P56: =P55*0.086 -> 7466.692 | Q56: =Q55*0.086 -> 7510.122
G57: TOTAL UTILITIES BASE BID | I57: Contingency | J57: =192000-(J55+J56) -> 8376.405 | K57: =J57/(J55+J56) -> 0.0456172585 | L57: =0.5*J57 -> 4188.2025 | M57: =0.5*J57 -> 4188.2025
I58: TOTAL | J58: =SUM(J55:J57) -> 192000 | L58: =SUM(L55:L57) -> 107412.5025 | M58: =SUM(M55:M57) -> 84587.4975 | O58: =SUM(O55:O57) -> 189125.814 | P58: =SUM(P55:P57) -> 94288.692 | Q58: =SUM(Q55:Q57) -> 94837.122

Sheet Add Alt 1 - Nontax
A1: Alternative 1 Bid Schedule - Overlay
A2: City of Arlington
A3: Airport Blvd Phase 1A
A4: NOTE: All entries must be typed or written in ink. Unit prices for all items, all extensions, lump sum prices, and the total amount of bid must be shown. Show unit prices in both words and figures; where conflicts occur, the written words will take precedence and be used to determine the total amount bid. The total bid amount shall include all work as included in the contract documents and applicable tax.
J6: =J21 -> 56600
A7: Item No. | B7: DESCRIPTION | C7: WSDOT Standard Item No. | D7: WSDOT Spec Ref Sect | E7: Approx. Quantity | F7: UNIT | G7: Unit Price | H7: Total Price | I7: Unit Price | J7: Total Price
B9: PREPARATION
A10: 301 | B10: =VLOOKUP(C10,'Detail List'!$A$2:$G$5000,3,FALSE) -> MOBILIZATION | C10: 0001 | D10: 1-09.7 | E10: 1 | F10: =VLOOKUP(C10,'Detail List'!$A$2:$I$5000,2,FALSE) -> L.S. | G10: $ | H10: $ | I10: 4000 | J10: =E10*I10 -> 4000
B11: (Unit Price in Words) ___________________________________________________
B13: HOT MIX ASPHALT
A14: 302 | B14: =VLOOKUP(C14,'Detail List'!$A$2:$G$5000,3,FALSE) -> PLANING BITUMINOUS PAVEMENT | C14: 5711 | D14: 5-04.5 | E14: =ROUND(Quantities!C101,-1) -> 1350 | F14: =VLOOKUP(C14,'Detail List'!$A$2:$I$5000,2,FALSE) -> S.Y. | G14: $ | H14: $ | I14: 5 | J14: =E14*I14 -> 6750
B15: (Unit Price in Words) ___________________________________________________
A16: 303 | B16: HMA FOR PAVEMENT CL. 1/2 IN. PG 64-22 | C16: 5739 | D16: 5-04.5 | E16: =ROUND(Quantities!C109,-1) -> 540 | F16: =VLOOKUP(C16,'Detail List'!$A$2:$I$5000,2,FALSE) -> TON | G16: $ | H16: $ | I16: ='Base Bid - Nontax'!I54 -> 80 | J16: =E16*I16 -> 43200
B17: (Unit Price in Words) ___________________________________________________
G19: TOTAL OVERLAY ALTERNATIVE 1 | I19: Subtototal | J19: =SUM(J8:J18) -> 53950
I20: Contingency | J20: =56600-J19 -> 2650 | K20: =J20/J19 -> 0.04911955514
I21: TOTAL | J21: =SUM(J19:J20) -> 56600

Sheet Add Alt 2 - Nontax
A1: Alternative 2 Bid Schedule - Curb
A2: City of Arlington
A3: Airport Blvd Phase 1A
A4: NOTE: All entries must be typed or written in ink. Unit prices for all items, all extensions, lump sum prices, and the total amount of bid must be shown. Show unit prices in both words and figures; where conflicts occur, the written words will take precedence and be used to determine the total amount bid. The total bid amount shall include all work as included in the contract documents and applicable tax.
J6: =J19 -> 132000
A7: Item No. | B7: DESCRIPTION | C7: WSDOT Standard Item No. | D7: WSDOT Spec Ref Sect | E7: Approx. Quantity | F7: UNIT | G7: Unit Price | H7: Total Price | I7: Unit Price | J7: Total Price
B9: PREPARATION
A10: 401 | B10: =VLOOKUP(C10,'Detail List'!$A$2:$G$5000,3,FALSE) -> MOBILIZATION | C10: 0001 | D10: 1-09.7 | E10: 1 | F10: =VLOOKUP(C10,'Detail List'!$A$2:$I$5000,2,FALSE) -> L.S. | G10: $ | H10: $ | I10: 5000 | J10: =E10*I10 -> 5000
B11: (Unit Price in Words) ___________________________________________________
B13: TRAFFIC
A14: 402 | B14: =VLOOKUP(C14,'Detail List'!$A$2:$G$5000,3,FALSE) -> CEMENT CONC. TRAFFIC CURB AND GUTTER | C14: 6700 | D14: 8-04.5 | E14: =Quantities!C17 -> 4900 | F14: =VLOOKUP(C14,'Detail List'!$A$2:$I$5000,2,FALSE) -> L.F. | G14: $ | H14: $ | I14: 25 | J14: =E14*I14 -> 122500
B15: (Unit Price in Words) ___________________________________________________
G17: TOTAL CURB ALTERNATIVE 2 | I17: Subtototal | J17: =SUM(J8:J16) -> 127500
I18: Contingency | J18: =132000-J17 -> 4500 | K18: =J18/J17 -> 0.03529411765
I19: TOTAL | J19: =SUM(J17:J18) -> 132000

Sheet Add Alt 3 - Nontax
A1: Alternative 3 Bid Schedule - Plantings
A2: City of Arlington
A3: Airport Blvd Phase 1A
A4: NOTE: All entries must be typed or written in ink. Unit prices for all items, all extensions, lump sum prices, and the total amount of bid must be shown. Show unit prices in both words and figures; where conflicts occur, the written words will take precedence and be used to determine the total amount bid. The total bid amount shall include all work as included in the contract documents and applicable tax.
J6: =J55 -> 479000
A7: Item No. | B7: DESCRIPTION | C7: WSDOT Standard Item No. | D7: WSDOT Spec Ref Sect | E7: Approx. Quantity | F7: UNIT | G7: Unit Price | H7: Total Price | I7: Unit Price | J7: Total Price | K7: Material | L7: labor
B9: PREPARATION
A10: 501 | B10: =VLOOKUP(C10,'Detail List'!$A$2:$G$5000,3,FALSE) -> MOBILIZATION | C10: 0001 | D10: 1-09.7 | E10: 1 | F10: =VLOOKUP(C10,'Detail List'!$A$2:$I$5000,2,FALSE) -> L.S. | G10: $ | H10: $ | I10: 28000 | J10: =E10*I10 -> 28000
B11: (Unit Price in Words) ___________________________________________________
B13: EROSION CONTROL AND ROADSIDE RESTORATION
A14: 502 | B14: PSIPE CAPITAL PEAR | C14: 6552 | D14: 7-05.4 | E14: 39 | F14: =VLOOKUP(C14,'Detail List'!$A$2:$I$5000,2,FALSE) -> EACH | G14: $ | H14: $ | I14: =SUM(K14:L14) -> 135 | J14: =E14*I14 -> 5265 | K14: 105 | L14: 30
B15: (Unit Price in Words) ___________________________________________________
A16: 503 | B16: PSIPE RED SUNSET | C16: 6552 | D16: 7-05.4 | E16: 24 | F16: =VLOOKUP(C16,'Detail List'!$A$2:$I$5000,2,FALSE) -> EACH | G16: $ | H16: $ | I16: =SUM(K16:L16) -> 155 | J16: =E16*I16 -> 3720 | K16: 125 | L16: 30
B17: (Unit Price in Words) ___________________________________________________
A18: 504 | B18: PSIPE KARPICK | C18: 6552 | D18: 7-05.4 | E18: 285 | F18: =VLOOKUP(C18,'Detail List'!$A$2:$I$5000,2,FALSE) -> EACH | G18: $ | H18: $ | I18: =SUM(K18:L18) -> 155 | J18: =E18*I18 -> 44175 | K18: 125 | L18: 30
B19: (Unit Price in Words) ___________________________________________________
A20: 505 | B20: PSIPE DWARF REDWIG DOGWOOD | C20: 6552 | D20: 7-05.4 | E20: 30 | F20: =VLOOKUP(C20,'Detail List'!$A$2:$I$5000,2,FALSE) -> EACH | G20: $ | H20: $ | I20: =SUM(K20:L20) -> 38.75 | J20: =E20*I20 -> 1162.5 | K20: 16.75 | L20: 22
B21: (Unit Price in Words) ___________________________________________________
A22: 506 | B22: PSIPE SALAL SHRUB | C22: 6552 | D22: 7-05.4 | E22: 60 | F22: =VLOOKUP(C22,'Detail List'!$A$2:$I$5000,2,FALSE) -> EACH | G22: $ | H22: $ | I22: =SUM(K22:L22) -> 26.25 | J22: =E22*I22 -> 1575 | K22: 4.25 | L22: 22
B23: (Unit Price in Words) ___________________________________________________
A24: 507 | B24: PSIPE MOCK ORANGE | C24: 6552 | D24: 7-05.4 | E24: 60 | F24: =VLOOKUP(C24,'Detail List'!$A$2:$I$5000,2,FALSE) -> EACH | G24: $ | H24: $ | I24: =SUM(K24:L24) -> 38.5 | J24: =E24*I24 -> 2310 | K24: 16.5 | L24: 22
B25: (Unit Price in Words) ___________________________________________________
A26: 508 | B26: PSIPE STAR MAGNOLIA | C26: 6552 | D26: 7-05.4 | E26: 12 | F26: =VLOOKUP(C26,'Detail List'!$A$2:$I$5000,2,FALSE) -> EACH | G26: $ | H26: $ | I26: =SUM(K26:L26) -> 46.5 | J26: =E26*I26 -> 558 | K26: 24.5 | L26: 22
B27: (Unit Price in Words) ___________________________________________________
A28: 509 | B28: PSIPE LEATHERLEAF VIBURNUM | C28: 6552 | D28: 7-05.4 | E28: 60 | F28: =VLOOKUP(C28,'Detail List'!$A$2:$I$5000,2,FALSE) -> EACH | G28: $ | H28: $ | I28: =SUM(K28:L28) -> 41.5 | J28: =E28*I28 -> 2490 | K28: 19.5 | L28: 22
B29: (Unit Price in Words) ___________________________________________________
A30: 510 | B30: PSIPE HEATHER SPECIES | C30: 6552 | D30: 7-05.4 | E30: 392 | F30: =VLOOKUP(C30,'Detail List'!$A$2:$I$5000,2,FALSE) -> EACH | G30: $ | H30: $ | I30: =SUM(K30:L30) -> 4.5 | J30: =E30*I30 -> 1764 | K30: 2.5 | L30: 2
B31: (Unit Price in Words) ___________________________________________________
A32: 511 | B32: PSIPE OREGON GRAPE | C32: 6552 | D32: 7-05.4 | E32: 588 | F32: =VLOOKUP(C32,'Detail List'!$A$2:$I$5000,2,FALSE) -> EACH | G32: $ | H32: $ | I32: =SUM(K32:L32) -> 41.5 | J32: =E32*I32 -> 24402 | K32: 19.5 | L32: 22
B33: (Unit Price in Words) ___________________________________________________
A34: 512 | B34: PSIPE KINNIKINNICK SHRUB | C34: 6552 | D34: 7-05.4 | E34: 560 | F34: =VLOOKUP(C34,'Detail List'!$A$2:$I$5000,2,FALSE) -> EACH | G34: $ | H34: $ | I34: =SUM(K34:L34) -> 41.5 | J34: =E34*I34 -> 23240 | K34: 19.5 | L34: 22
B35: (Unit Price in Words) ___________________________________________________
A36: 513 | B36: PSIPE SWEAT GALE | C36: 6552 | D36: 7-05.4 | E36: 560 | F36: =VLOOKUP(C36,'Detail List'!$A$2:$I$5000,2,FALSE) -> EACH | G36: $ | H36: $ | I36: =SUM(K36:L36) -> 41.5 | J36: =E36*I36 -> 23240 | K36: 19.5 | L36: 22
B37: (Unit Price in Words) ___________________________________________________
A38: 514 | B38: PSIPE SNOW BERRY | C38: 6552 | D38: 7-05.4 | E38: 560 | F38: =VLOOKUP(C38,'Detail List'!$A$2:$I$5000,2,FALSE) -> EACH | G38: $ | H38: $ | I38: =SUM(K38:L38) -> 41.5 | J38: =E38*I38 -> 23240 | K38: 19.5 | L38: 22
B39: (Unit Price in Words) ___________________________________________________
A40: 515 | B40: PSIPE KINNIKINNICK GROUND COVER | C40: 6552 | D40: 7-05.4 | E40: 9286 | F40: S.F. | G40: $ | H40: $ | I40: =SUM(K40:L40) -> 6.3 | J40: =E40*I40 -> 58501.8 | K40: =4*1.45 -> 5.8 | L40: 0.5
B41: (Unit Price in Words) ___________________________________________________
A42: 516 | B42: PSIPE WINTER CREEPER GROUND COVER | C42: 6552 | D42: 7-05.4 | E42: 6931 | F42: S.F. | G42: $ | H42: $ | I42: =SUM(K42:L42) -> 6.3 | J42: =E42*I42 -> 43665.3 | K42: =4*1.45 -> 5.8 | L42: 0.5
B43: (Unit Price in Words) ___________________________________________________
A44: 517 | B44: PSIPE SALAL GROUND COVER | C44: 6552 | D44: 7-05.4 | E44: 6931 | F44: S.F. | G44: $ | H44: $ | I44: =SUM(K44:L44) -> 6.3 | J44: =E44*I44 -> 43665.3 | K44: =4*1.45 -> 5.8 | L44: 0.5
B45: (Unit Price in Words) ___________________________________________________
A46: 518 | B46: PSIPE SMALL FRUITED BULRUSH | C46: 6552 | D46: 7-05.4 | E46: 8575 | F46: S.F. | G46: $ | H46: $ | I46: =SUM(K46:L46) -> 6.3 | J46: =E46*I46 -> 54022.5 | K46: =4*1.45 -> 5.8 | L46: 0.5
B47: (Unit Price in Words) ___________________________________________________
A48: 519 | B48: PSIPE OWLFRUIT SEDGE | C48: 6552 | D48: 7-05.4 | E48: 8575 | F48: S.F. | G48: $ | H48: $ | I48: =SUM(K48:L48) -> 6.3 | J48: =E48*I48 -> 54022.5 | K48: =4*1.45 -> 5.8 | L48: 0.5
B49: (Unit Price in Words) ___________________________________________________
A50: 520 | B50: PSIPE PATH RUSH | C50: 6552 | D50: 7-05.4 | E50: 8575 | F50: S.F. | G50: $ | H50: $ | I50: =SUM(K50:L50) -> 6.3 | J50: =E50*I50 -> 54022.5 | K50: =4*1.45 -> 5.8 | L50: 0.5
B51: (Unit Price in Words) ___________________________________________________
G53: TOTAL PLANTINGS ALTERNATIVE 3 | I53: Subtototal | J53: =SUM(J12:J52) -> 465041.4
I54: Contingency | J54: =479000-J53 -> 13958.6 | K54: =J54/J53 -> 0.03001582225
I55: TOTAL | J55: =SUM(J53:J54) -> 479000

Sheet Detail List
A1: Standard Item Number | B1: Unit of Measure | C1: Standard Item description | D1: Prequal Code | E1: Item Use Instructions | F1: Section | G1: Section Code # | H1: Item Construction Sequence | I1: Measurement System English, Metric, Common
A2: 0001 | B2: L.S. | C2: MOBILIZATION | D2: A1 | E2: STANDARD ITEM | F2: PREPARATION | G2: 1 | H2: 1 | I2: C
A3: 0002 | B3: L.S. | C3: MOBILIZATION | D3: A1 | E3: REQUIRES SPECIAL PROV. | F3: PREPARATION | G3: 1 | H3: 2 | I3: C
A4: 0003 | B4: ACRE | C4: TEST | D4: A1 | E4: STANDARD ITEM | F4: PREPARATION | G4: 1 | H4: 86 | I4: E
A5: 0025 | B5: ACRE | C5: CLEARING AND GRUBBING | D5: D6 | E5: STANDARD ITEM | F5: PREPARATION | G5: 1 | H5: 3 | I5: E
A6: 0030 | B6: ACRE | C6: CLEARING AND GRUBBING - SITE | D6: D6 | E6: STANDARD ITEM | F6: PREPARATION | G6: 1 | H6: 5 | I6: E
A7: 0035 | B7: L.S. | C7: CLEARING AND GRUBBING | D7: D6 | E7: STD. ITEM, GSP REQUIRED | F7: PREPARATION | G7: 1 | H7: 7 | I7: C
A8: 0038 | B8: EST. | C8: ARCHAEOLOGICAL AND HISTORICAL SALVAGE | D8: A1 | E8: GSP ITEM | F8: PREPARATION | G8: 1 | H8: 13 | I8: C
A9: 0040 | B9: L.S. | C9: CLEARING AND GRUBBING - SITE | D9: D6 | E9: STD. ITEM, GSP REQUIRED | F9: PREPARATION | G9: 1 | H9: 8 | I9: C
A10: 0044 | B10: C.Y. | C10: STRIPPING INCL. HAUL | D10: D6 | E10: STANDARD ITEM | F10: PREPARATION | G10: 1 | H10: 11 | I10: E
A11: 0045 | B11: C.Y. | C11: STRIPPING INCL. HAUL - SITE | D11: D6 | E11: STANDARD ITEM | F11: PREPARATION | G11: 1 | H11: 12 | I11: E
A12: 0047 | B12: EACH | C12: REMOVING MANHOLE | D12: G2 | E12: REQUIRES SPECIAL PROV. | F12: PREPARATION | G12: 1 | H12: 14 | I12: C
A13: 0049 | B13: EACH | C13: REMOVING DRAINAGE STRUCTURE | D13: G2 | E13: REQUIRES SPECIAL PROV. | F13: PREPARATION | G13: 1 | H13: 15 | I13: C
A14: 0050 | B14: L.S. | C14: REMOVAL OF STRUCTURE AND OBSTRUCTION | D14: F8 | E14: STD. ITEM, GSP REQUIRED | F14: PREPARATION | G14: 1 | H14: 16 | I14: C
A15: 0060 | B15: L.S. | C15: REMOVING PORTION OF EXISTING STRUCTURE | D15: F8 | E15: REQUIRES SPECIAL PROV. | F15: PREPARATION | G15: 1 | H15: 23 | I15: C
A16: 0061 | B16: L.S. | C16: REMOVING PORTION OF EXISTING BRIDGE | D16: F8 | E16: GSP ITEM | F16: PREPARATION | G16: 1 | H16: 24 | I16: C
A17: 0062 | B17: L.S. | C17: REMOVING PORTION OF CONC. BOX CULV. | D17: F8 | E17: REQUIRES SPECIAL PROV. | F17: PREPARATION | G17: 1 | H17: 25 | I17: C
A18: 0070 | B18: L.S. | C18: REMOVING EXISTING STRUCTURE | D18: F8 | E18: GSP ITEM | F18: PREPARATION | G18: 1 | H18: 26 | I18: C
A19: 0071 | B19: L.S. | C19: REMOVING EXISTING BRIDGE | D19: F8 | E19: GSP ITEM | F19: PREPARATION | G19: 1 | H19: 27 | I19: C
A20: 0080 | B20: S.Y. | C20: REMOVING BITUMINOUS PAVEMENT | D20: D6 | E20: REQUIRES SPECIAL PROV. | F20: PREPARATION | G20: 1 | H20: 29 | I20: E
A21: 0090 | B21: S.Y. | C21: REMOVING CEMENT CONC. PAVEMENT | D21: D6 | E21: GSP ITEM | F21: PREPARATION | G21: 1 | H21: 31 | I21: E
A22: 0100 | B22: S.Y. | C22: REMOVING CEMENT CONC. SIDEWALK | D22: D6 | E22: REQUIRES SPECIAL PROV. | F22: PREPARATION | G22: 1 | H22: 33 | I22: E
A23: 0108 | B23: L.F. | C23: REMOVING CEMENT CONC. CURB AND GUTTER | D23: D6 | E23: REQUIRES SPECIAL PROV. | F23: PREPARATION | G23: 1 | H23: 35 | I23: E
A24: 0110 | B24: L.F. | C24: REMOVING CEMENT CONC. CURB | D24: D6 | E24: GSP ITEM | F24: PREPARATION | G24: 1 | H24: 37 | I24: E
A25: 0114 | B25: L.F. | C25: REMOVING CEMENT CONC. GUTTER | D25: D6 | E25: REQUIRES SPECIAL PROV. | F25: PREPARATION | G25: 1 | H25: 39 | I25: E
A26: 0116 | B26: EACH | C26: REMOVING CONC. INLET | D26: D6 | E26: REQUIRES SPECIAL PROV. | F26: PREPARATION | G26: 1 | H26: 28 | I26: C
A27: 0120 | B27: S.Y. | C27: REMOVING ASPHALT CONC. PAVEMENT | D27: D6 | E27: GSP ITEM | F27: PREPARATION | G27: 1 | H27: 41 | I27: E
A28: 0130 | B28: S.Y. | C28: REMOVING ASPHALT CONC. SIDEWALK | D28: D6 | E28: GSP ITEM | F28: PREPARATION | G28: 1 | H28: 43 | I28: E
A29: 0140 | B29: L.F. | C29: REMOVING ASPHALT CONC. CURB | D29: D6 | E29: GSP ITEM | F29: PREPARATION | G29: 1 | H29: 45 | I29: E
A30: 0145 | B30: L.F. | C30: REMOVING CONC. BARRIER | D30: N0 | E30: REQUIRES SPECIAL PROV. | F30: PREPARATION | G30: 1 | H30: 47 | I30: E
A31: 0150 | B31: S.Y. | C31: REMOVING TRAFFIC ISLAND | D31: D6 | E31: REQUIRES SPECIAL PROV. | F31: PREPARATION | G31: 1 | H31: 49 | I31: E
A32: 0160 | B32: L.F. | C32: REMOVING TRAFFIC CURB | D32: D6 | E32: REQUIRES SPECIAL PROV. | F32: PREPARATION | G32: 1 | H32: 51 | I32: E
A33: 0170 | B33: L.F. | C33: REMOVING GUARDRAIL | D33: K2 | E33: STANDARD ITEM | F33: PREPARATION | G33: 1 | H33: 53 | I33: E
A34: 0180 | B34: EACH | C34: REMOVING CONC. SPOT POST | D34: A1 | E34: REQUIRES SPECIAL PROV. | F34: PREPARATION | G34: 1 | H34: 56 | I34: C
A35: 0182 | B35: EACH | C35: REMOVING GUARDRAIL ANCHOR | D35: K2 | E35: STANDARD ITEM | F35: PREPARATION | G35: 1 | H35: 55 | I35: C
A36: 0185 | B36: EACH | C36: REMOVING GUIDE POST | D36: K6 | E36: REQUIRES SPECIAL PROV. | F36: PREPARATION | G36: 1 | H36: 57 | I36: C
A37: 0187 | B37: L.F. | C37: REMOVING PAINT LINE | D37: Q2 | E37: STANDARD ITEM | F37: PREPARATION | G37: 1 | H37: 60 | I37: E
A38: 0188 | B38: L.F. | C38: REMOVING TEMPORARY PAVEMENT MARKING | D38: Q2 | E38: STANDARD ITEM | F38: PREPARATION | G38: 1 | H38: 58 | I38: E
A39: 0190 | B39: L.F. | C39: REMOVING PLASTIC LINE | D39: Q2 | E39: STANDARD ITEM | F39: PREPARATION | G39: 1 | H39: 61 | I39: E
A40: 0199 | B40: EACH | C40: REMOVING PAINTED TRAFFIC MARKING | D40: Q2 | E40: STANDARD ITEM | F40: PREPARATION | G40: 1 | H40: 64 | I40: C
A41: 0200 | B41: EACH | C41: REMOVING PLASTIC TRAFFIC MARKING | D41: Q2 | E41: STANDARD ITEM | F41: PREPARATION | G41: 1 | H41: 65 | I41: C
A42: 0201 | B42: EACH | C42: REMOVING TRAFFIC BUTTON | D42: Q2 | E42: REQUIRES SPECIAL PROV. | F42: PREPARATION | G42: 1 | H42: 70 | I42: C
A43: 0203 | B43: S.F. | C43: REMOVING PAINTED CROSSWALK LINE | D43: Q2 | E43: STANDARD ITEM | F43: PREPARATION | G43: 1 | H43: 66 | I43: E
A44: 0204 | B44: S.F. | C44: REMOVING PLASTIC CROSSWALK LINE | D44: Q2 | E44: STANDARD ITEM | F44: PREPARATION | G44: 1 | H44: 67 | I44: E
A45: 0208 | B45: HUND | C45: REMOVING RAISED PAVEMENT MARKER | D45: Q2 | E45: REQUIRES SPECIAL PROV. | F45: PREPARATION | G45: 1 | H45: 71 | I45: C
A46: 0209 | B46: L.S. | C46: REMOVING RAISED PAVEMENT MARKER | D46: Q2 | E46: REQUIRES SPECIAL PROV. | F46: PREPARATION | G46: 1 | H46: 72 | I46: C
A47: 0213 | B47: L.F. | C47: REMOVING DELINEATION LIGHT | D47: H2 | E47: REQUIRES SPECIAL PROV. | F47: PREPARATION | G47: 1 | H47: 73 | I47: E
A48: 0215 | B48: L.S. | C48: REMOVING MISCELLANEOUS TRAFFIC ITEM | D48: Q2 | E48: GSP ITEM | F48: PREPARATION | G48: 1 | H48: 75 | I48: C
A49: 0220 | B49: L.F. | C49: REMOVING CHAIN LINK FENCE | D49: I8 | E49: REQUIRES SPECIAL PROV. | F49: PREPARATION | G49: 1 | H49: 76 | I49: E
A50: 0230 | B50: L.F. | C50: REMOVING WIRE FENCE | D50: I8 | E50: REQUIRES SPECIAL PROV. | F50: PREPARATION | G50: 1 | H50: 78 | I50: E
A51: 0240 | B51: EST. | C51: VOLCANIC ASH REMOVAL | D51: A1 | E51: REQUIRES SPECIAL PROV. | F51: PREPARATION | G51: 1 | H51: 80 | I51: C
A52: 0250 | B52: L.S. | C52: REMOVAL AND DISPOSAL OF ASBESTOS MATERIAL | D52: A3 | E52: GSP ITEM | F52: PREPARATION | G52: 1 | H52: 81 | I52: C
A53: 0251 | B53: C.Y. | C53: HAZARDOUS MATERIAL EXCAVATION | D53: A1 | E53: GSP ITEM | F53: PREPARATION | G53: 1 | H53: 82 | I53: E
A54: 0252 | B54: EST. | C54: REMOVING NOISE BARRIER WALL SHAFT OBSTRUCTIONS | D54: T0 | E54: AMENDMENT ITEM | F54: PREPARATION | G54: 1 | H54: 17 | I54: C
A55: 0254 | B55: EST. | C55: REMOVING SOLDIER PILE SHAFT OBSTRUCTIONS | D55: T0 | E55: AMENDMENT ITEM | F55: PREPARATION | G55: 1 | H55: 18 | I55: C
A56: 0256 | B56: EST. | C56: REMOVING SHAFT OBSTRUCTIONS | D56: T0 | E56: STANDARD ITEM | F56: PREPARATION | G56: 1 | H56: 19 | I56: C
A57: 0257 | B57: EST. | C57: REMOVING TRAFFIC SIGNAL SHAFT OBSTRUCTIONS | D57: T0 | E57: BSP ITEM | F57: PREPARATION | G57: 1 | H57: 20 | I57: C
A58: 0258 | B58: EST. | C58: REMOVING SIGN STRUCTURE SHAFT OBSTRUCTIONS | D58: T0 | E58: BSP ITEM | F58: PREPARATION | G58: 1 | H58: 21 | I58: C
A59: 0259 | B59: L.S. | C59: WORK ACCESS | D59: B0 | E59: BSP ITEM | F59: PREPARATION | G59: 1 | H59: 22 | I59: C
A60: 0260 | B60: EST. | C60: HAZARDOUS MATERIAL HANDLING AND DISPOSAL | D60: A1 | E60: GSP ITEM | F60: PREPARATION | G60: 1 | H60: 83 | I60: C
A61: 0261 | B61: C.Y. | C61: HAZARDOUS MATERIAL EXCAVATION INCL. HAUL | D61: A1 | E61: GSP ITEM | F61: PREPARATION | G61: 1 | H61: 84 | I61: E
A62: 0280 | B62: ha | C62: CLEARING AND GRUBBING | D62: D6 | E62: STANDARD ITEM | F62: PREPARATION | G62: 1 | H62: 4 | I62: M
A63: 0283 | B63: ha | C63: CLEARING AND GRUBBING - SITE | D63: D6 | E63: STANDARD ITEM | F63: PREPARATION | G63: 1 | H63: 6 | I63: M
A64: 0292 | B64: m3 | C64: STRIPPING INCL. HAUL | D64: D1 | E64: STANDARD ITEM | F64: PREPARATION | G64: 1 | H64: 9 | I64: M
A65: 0295 | B65: m3 | C65: STRIPPING INCL. HAUL - SITE | D65: D6 | E65: STANDARD ITEM | F65: PREPARATION | G65: 1 | H65: 10 | I65: M
A66: 0300 | B66: C.Y. | C66: ROADWAY EXCAVATION | D66: J6 | E66: STANDARD ITEM | F66: GRADING | G66: 2 | H66: 87 | I66: E
A67: 0310 | B67: C.Y. | C67: ROADWAY EXCAVATION INCL. HAUL | D67: J6 | E67: STANDARD ITEM | F67: GRADING | G67: 2 | H67: 89 | I67: E
A68: 0320 | B68: C.Y. | C68: ROADWAY EXCAVATION - AREA | D68: J6 | E68: STANDARD ITEM | F68: GRADING | G68: 2 | H68: 91 | I68: E
A69: 0330 | B69: C.Y. | C69: ROADWAY EXCAVATION INCL. HAUL - AREA | D69: J6 | E69: STANDARD ITEM | F69: GRADING | G69: 2 | H69: 93 | I69: E
A70: 0332 | B70: S.Y. | C70: PAVEMENT REPAIR EXCAVATION INCL. HAUL | D70: J6 | E70: STANDARD ITEM | F70: GRADING | G70: 2 | H70: 95 | I70: E
A71: 0340 | B71: C.Y. | C71: UNSUITABLE FOUNDATION EXCAVATION | D71: J6 | E71: STANDARD ITEM | F71: GRADING | G71: 2 | H71: 97 | I71: E
A72: 0350 | B72: C.Y. | C72: UNSUITABLE FOUNDATION EXCAVATION INCL. HAUL | D72: J6 | E72: STANDARD ITEM | F72: GRADING | G72: 2 | H72: 99 | I72: E
A73: 0370 | B73: L.F. | C73: CONTROLLED BLASTING OF ROCK FACE | D73: G8 | E73: STANDARD ITEM | F73: GRADING | G73: 2 | H73: 101 | I73: E
A74: 0380 | B74: CRHR | C74: ROCK SLOPE SCALING | D74: X0 | E74: GSP ITEM | F74: GRADING | G74: 2 | H74: 103 | I74: C
A75: 0390 | B75: C.Y. | C75: ROCK SLOPE SCALING DEBRIS REMOVAL INCL. HAUL | D75: K8 | E75: GSP ITEM | F75: GRADING | G75: 2 | H75: 104 | I75: E
A76: 0400 | B76: UNIT | C76: HAUL | D76: K8 | E76: STANDARD ITEM | F76: GRADING | G76: 2 | H76: 105 | I76: C
A77: 0405 | B77: C.Y. | C77: COMMON BORROW INCL. HAUL | D77: J6 | E77: STANDARD ITEM | F77: GRADING | G77: 2 | H77: 106 | I77: E
A78: 0408 | B78: TON | C78: SELECT BORROW INCL. HAUL | D78: J6 | E78: STANDARD ITEM | F78: GRADING | G78: 2 | H78: 107 | I78: E
A79: 0409 | B79: C.Y. | C79: SELECT BORROW INCL. HAUL | D79: J6 | E79: STANDARD ITEM | F79: GRADING | G79: 2 | H79: 108 | I79: E
A80: 0421 | B80: C.Y. | C80: GRAVEL BORROW INCL. HAUL | D80: J6 | E80: STANDARD ITEM | F80: GRADING | G80: 2 | H80: 111 | I80: E
A81: 0431 | B81: TON | C81: GRAVEL BORROW INCL. HAUL | D81: J6 | E81: STANDARD ITEM | F81: GRADING | G81: 2 | H81: 115 | I81: E
A82: 0440 | B82: TON | C82: SAND DRAINAGE BLANKET | D82: J6 | E82: STANDARD ITEM | F82: GRADING | G82: 2 | H82: 117 | I82: E
A83: 0455 | B83: L.F. | C83: PREFABRICATED VERTICAL DRAIN | D83: L4 | E83: STANDARD ITEM | F83: GRADING | G83: 2 | H83: 119 | I83: E
A84: 0460 | B84: C.Y. | C84: EMBANKMENT IN PLACE | D84: J6 | E84: REQ. SPECIAL & HQ APPROV. | F84: GRADING | G84: 2 | H84: 121 | I84: E
A85: 0470 | B85: C.Y. | C85: EMBANKMENT COMPACTION | D85: J6 | E85: STANDARD ITEM | F85: GRADING | G85: 2 | H85: 123 | I85: E
A86: 0480 | B86: HR | C86: COMPACTOR UNIT | D86: J6 | E86: REQUIRES SPECIAL PROV. | F86: GRADING | G86: 2 | H86: 124 | I86: M
A87: 0490 | B87: EST. | C87: AERATION | D87: J6 | E87: STD. ITEM REQ. HQ APPROV. | F87: GRADING | G87: 2 | H87: 125 | I87: C
A88: 0500 | B88: L.F. | C88: SETTLEMENT INDICATING DEVICE | D88: T6 | E88: REQUIRES SPECIAL PROV. | F88: GRADING | G88: 2 | H88: 126 | I88: E
A89: 0502 | B89: EACH | C89: SETTLEMENT INDICATING DEVICE | D89: T6 | E89: REQUIRES SPECIAL PROV. | F89: GRADING | G89: 2 | H89: 128 | I89: C
A90: 0505 | B90: EACH | C90: PORE PRESSURE DETECTION DEVICE | D90: R4 | E90: REQUIRES SPECIAL PROV. | F90: GRADING | G90: 2 | H90: 129 | I90: C
A91: 0530 | B91: m2 | C91: REMOVING BITUMINOUS PAVEMENT | D91: D6 | E91: REQUIRES SPECIAL PROV. | F91: PREPARATION | G91: 1 | H91: 30 | I91: M
A92: 0535 | B92: m2 | C92: REMOVING CEMENT CONC. PAVEMENT | D92: D6 | E92: GSP ITEM | F92: PREPARATION | G92: 1 | H92: 32 | I92: M
A93: 0540 | B93: m2 | C93: REMOVING CEMENT CONC. SIDEWALK | D93: D6 | E93: REQUIRES SPECIAL PROV. | F93: PREPARATION | G93: 1 | H93: 34 | I93: M
A94: 0545 | B94: m | C94: REMOVING CEMENT CONC. CURB AND GUTTER | D94: D6 | E94: REQUIRES SPECIAL PROV. | F94: PREPARATION | G94: 1 | H94: 36 | I94: M
A95: 0550 | B95: m | C95: REMOVING CEMENT CONC. CURB | D95: D6 | E95: REQUIRES SPECIAL PROV. | F95: PREPARATION | G95: 1 | H95: 38 | I95: M
A96: 0555 | B96: m | C96: REMOVING CEMENT CONC. GUTTER | D96: D6 | E96: REQUIRES SPECIAL PROV. | F96: PREPARATION | G96: 1 | H96: 40 | I96: M
A97: 0565 | B97: m2 | C97: REMOVING ASPHALT CONC. PAVEMENT | D97: D6 | E97: GSP ITEM | F97: PREPARATION | G97: 1 | H97: 42 | I97: M
A98: 0570 | B98: m2 | C98: REMOVING ASPHALT CONC. SIDEWALK | D98: D6 | E98: GSP ITEM | F98: PREPARATION | G98: 1 | H98: 44 | I98: M
A99: 0575 | B99: m | C99: REMOVING ASPHALT CONC. CURB | D99: D6 | E99: GSP ITEM | F99: PREPARATION | G99: 1 | H99: 46 | I99: M
A100: 0580 | B100: m | C100: REMOVING CONC. BARRIER | D100: N0 | E100: REQUIRES SPECIAL PROV. | F100: PREPARATION | G100: 1 | H100: 48 | I100: M
A101: 0585 | B101: m2 | C101: REMOVING TRAFFIC ISLAND | D101: D6 | E101: REQUIRES SPECIAL PROV. | F101: PREPARATION | G101: 1 | H101: 50 | I101: M
A102: 0590 | B102: m | C102: REMOVING TRAFFIC CURB | D102: D6 | E102: REQUIRES SPECIAL PROV. | F102: PREPARATION | G102: 1 | H102: 52 | I102: M
A103: 0595 | B103: m | C103: REMOVING GUARDRAIL | D103: K2 | E103: STANDARD ITEM | F103: PREPARATION | G103: 1 | H103: 54 | I103: M
A104: 0600 | B104: C.Y. | C104: BALLAST IN STOCKPILE | D104: F6 | E104: STANDARD ITEM | F104: STOCKPILING | G104: 3 | H104: 130 | I104: E
A105: 0610 | B105: TON | C105: BALLAST IN STOCKPILE | D105: F6 | E105: STANDARD ITEM | F105: STOCKPILING | G105: 3 | H105: 132 | I105: E
A106: 0620 | B106: C.Y. | C106: PERMEABLE BALLAST IN STOCKPILE | D106: F6 | E106: STANDARD ITEM | F106: STOCKPILING | G106: 3 | H106: 134 | I106: E
A107: 0630 | B107: TON | C107: PERMEABLE BALLAST IN STOCKPILE | D107: F6 | E107: STANDARD ITEM | F107: STOCKPILING | G107: 3 | H107: 136 | I107: E
A108: 0640 | B108: C.Y. | C108: CRUSHED SURFACING BASE COURSE IN STOCKPILE | D108: F6 | E108: STANDARD ITEM | F108: STOCKPILING | G108: 3 | H108: 138 | I108: E
A109: 0650 | B109: TON | C109: CRUSHED SURFACING BASE COURSE IN STOCKPILE | D109: F6 | E109: STANDARD ITEM | F109: STOCKPILING | G109: 3 | H109: 140 | I109: E
A110: 0660 | B110: C.Y. | C110: CRUSHED SURFACING TOP COURSE IN STOCKPILE | D110: F6 | E110: STANDARD ITEM | F110: STOCKPILING | G110: 3 | H110: 142 | I110: E
A111: 0670 | B111: TON | C111: CRUSHED SURFACING TOP COURSE IN STOCKPILE | D111: F6 | E111: STANDARD ITEM | F111: STOCKPILING | G111: 3 | H111: 144 | I111: E
A112: 0690 | B112: TON | C112: CRUSHED COVER STONE IN STOCKPILE | D112: F6 | E112: STANDARD ITEM | F112: STOCKPILING | G112: 3 | H112: 146 | I112: E
A113: 0695 | B113: C.Y. | C113: CRUSHED COVER STONE IN STOCKPILE | D113: F6 | E113: STANDARD ITEM | F113: STOCKPILING | G113: 3 | H113: 148 | I113: E
A114: 0700 | B114: TON | C114: SCREENED COVER STONE IN STOCKPILE | D114: F6 | E114: STANDARD ITEM | F114: STOCKPILING | G114: 3 | H114: 150 | I114: E
A115: 0710 | B115: TON | C115: CRUSHED SCREENING 5/8 TO 1/4 IN STOCKPILE | D115: F6 | E115: STANDARD ITEM | F115: STOCKPILING | G115: 3 | H115: 152 | I115: E
A116: 0711 | B116: C.Y. | C116: CRUSHED SCREENING 5/8 TO 1/4 IN STOCKPILE | D116: F6 | E116: STANDARD ITEM | F116: STOCKPILING | G116: 3 | H116: 154 | I116: E
A117: 0720 | B117: TON | C117: CRUSHED SCREENING 1/2 TO 1/4 IN STOCKPILE | D117: F6 | E117: STANDARD ITEM | F117: STOCKPILING | G117: 3 | H117: 156 | I117: E
A118: 0721 | B118: C.Y. | C118: CRUSHED SCREENING 1/2 TO 1/4 IN STOCKPILE | D118: F6 | E118: STANDARD ITEM | F118: STOCKPILING | G118: 3 | H118: 158 | I118: E
A119: 0725 | B119: TON | C119: CRUSHED SCREENING 3/8 TO NO. 10 IN STOCKPILE | D119: F6 | E119: STANDARD ITEM | F119: STOCKPILING | G119: 3 | H119: 160 | I119: E
A120: 0726 | B120: C.Y. | C120: CRUSHED SCREENING 3/8 TO NO. 10 IN STOCKPILE | D120: F6 | E120: STANDARD ITEM | F120: STOCKPILING | G120: 3 | H120: 162 | I120: E
A121: 0730 | B121: TON | C121: CRUSHED SCREENING 1/4 TO 0 IN STOCKPILE | D121: F6 | E121: STANDARD ITEM | F121: STOCKPILING | G121: 3 | H121: 164 | I121: E
A122: 0731 | B122: C.Y. | C122: CRUSHED SCREENING 1/4 TO 0 IN STOCKPILE | D122: F6 | E122: STANDARD ITEM | F122: STOCKPILING | G122: 3 | H122: 166 | I122: E
A123: 0740 | B123: TON | C123: AGG. FOR ACP CL. B 5/8 IN. TO 1/4 IN. IN STOCKPILE | D123: F6 | E123: STANDARD ITEM | F123: STOCKPILING | G123: 3 | H123: 168 | I123: E
A124: 0750 | B124: TON | C124: AGG. FOR ACP CL. B 1/4 IN. TO 0 IN. IN STOCKPILE | D124: F6 | E124: STANDARD ITEM | F124: STOCKPILING | G124: 3 | H124: 170 | I124: E
A125: 0790 | B125: TON | C125: AGG. FOR ACP CL. F 3/4 IN. TO 1/4 IN. IN STOCKPILE | D125: F6 | E125: STANDARD ITEM | F125: STOCKPILING | G125: 3 | H125: 172 | I125: E
A126: 0800 | B126: TON | C126: AGG. FOR ACP CL. F 1/4 IN. TO 0 IN. IN STOCKPILE | D126: F6 | E126: STANDARD ITEM | F126: STOCKPILING | G126: 3 | H126: 174 | I126: E
A127: 0820 | B127: C.Y. | C127: MAINTENANCE ROCK 1/2 IN. MINUS IN STOCKPILE | D127: F6 | E127: STANDARD ITEM | F127: STOCKPILING | G127: 3 | H127: 176 | I127: E
A128: 0830 | B128: TON | C128: MAINTENANCE ROCK 1/2 IN. MINUS IN STOCKPILE | D128: F6 | E128: STANDARD ITEM | F128: STOCKPILING | G128: 3 | H128: 178 | I128: E
A129: 0840 | B129: C.Y. | C129: MAINTENANCE SAND 3/8 IN. MINUS IN STOCKPILE | D129: F6 | E129: REQUIRES SPECIAL PROV. | F129: STOCKPILING | G129: 3 | H129: 180 | I129: E
A130: 0850 | B130: TON | C130: MAINTENANCE SAND 3/8 IN. MINUS IN STOCKPILE | D130: F6 | E130: REQUIRES SPECIAL PROV. | F130: STOCKPILING | G130: 3 | H130: 182 | I130: E
A131: 0860 | B131: C.Y. | C131: MAINTENANCE SAND 1/4 IN. MINUS IN STOCKPILE | D131: F6 | E131: REQUIRES SPECIAL PROV. | F131: STOCKPILING | G131: 3 | H131: 184 | I131: E
A132: 0870 | B132: TON | C132: MAINTENANCE SAND 1/4 IN. MINUS IN STOCKPILE | D132: F6 | E132: REQUIRES SPECIAL PROV. | F132: STOCKPILING | G132: 3 | H132: 186 | I132: E
A133: 0887 | B133: m | C133: REMOVING PAINT LINE | D133: Q2 | E133: STANDARD ITEM | F133: PREPARATION | G133: 1 | H133: 62 | I133: M
A134: 0888 | B134: m | C134: REMOVING PLASTIC LINE | D134: Q2 | E134: STANDARD ITEM | F134: PREPARATION | G134: 1 | H134: 63 | I134: M
A135: 0900 | B135: m | C135: REMOVING TEMPORARY PAVEMENT MARKING | D135: Q2 | E135: STANDARD ITEM | F135: PREPARATION | G135: 1 | H135: 59 | I135: M
A136: 0909 | B136: m2 | C136: REMOVING PAINTED CROSSWALK LINE | D136: Q2 | E136: STANDARD ITEM | F136: PREPARATION | G136: 1 | H136: 68 | I136: M
A137: 0910 | B137: m2 | C137: REMOVING PLASTIC CROSSWALK LINE | D137: Q2 | E137: STANDARD ITEM | F137: PREPARATION | G137: 1 | H137: 69 | I137: M
A138: 0920 | B138: m | C138: REMOVING DELINEATION LIGHT | D138: H2 | E138: REQUIRES SPECIAL PROV. | F138: PREPARATION | G138: 1 | H138: 74 | I138: M
A139: 0930 | B139: m | C139: REMOVING CHAIN LINK FENCE | D139: I8 | E139: REQUIRES SPECIAL PROV. | F139: PREPARATION | G139: 1 | H139: 77 | I139: M
A140: 0935 | B140: m | C140: REMOVING WIRE FENCE | D140: I8 | E140: REQUIRES SPECIAL PROV. | F140: PREPARATION | G140: 1 | H140: 79 | I140: M
A141: 0940 | B141: L.S. | C141: DISPOSAL OF CREOSOTED MATERIAL | D141: F8 | E141: WSF ITEM REQ. SPECIAL PROV. | F141: PREPARATION | G141: 1 | H141: 85 | I141: C
A142: 0966 | B142: EACH | C142: TAPERED END SECTION WITH TYPE 4 SAFETY BARS 21 IN. SPAN | D142: G2 | E142: STANDARD ITEM | F142: DRAINAGE | G142: 4 | H142: 278 | I142: C
A143: 0967 | B143: EACH | C143: TAPERED END SECTION WITH TYPE 4 SAFETY BARS 15 IN. DIAM. | D143: G2 | E143: STANDARD ITEM | F143: DRAINAGE | G143: 4 | H143: 246 | I143: C
A144: 0968 | B144: EACH | C144: TAPERED END SECTION WITH TYPE 4 SAFETY BARS 18 IN. DIAM. | D144: G2 | E144: STANDARD ITEM | F144: DRAINAGE | G144: 4 | H144: 248 | I144: C
A145: 0969 | B145: EACH | C145: TAPERED END SECTION WITH TYPE 4 SAFETY BARS 21 IN. DIAM. | D145: G2 | E145: STANDARD ITEM | F145: DRAINAGE | G145: 4 | H145: 250 | I145: C
A146: 0970 | B146: EACH | C146: TAPERED END SECTION WITH TYPE 4 SAFETY BARS 24 IN. DIAM. | D146: G2 | E146: STANDARD ITEM | F146: DRAINAGE | G146: 4 | H146: 252 | I146: C
A147: 0971 | B147: EACH | C147: TAPERED END SECTION WITH TYPE 4 SAFETY BARS 30 IN. DIAM. | D147: G2 | E147: STANDARD ITEM | F147: DRAINAGE | G147: 4 | H147: 254 | I147: C
A148: 0972 | B148: EACH | C148: TAPERED END SECTION WITH TYPE 3 SAFETY BARS 36 IN. DIAM. | D148: G2 | E148: STANDARD ITEM | F148: DRAINAGE | G148: 4 | H148: 256 | I148: C
A149: 0973 | B149: EACH | C149: TAPERED END SECTION WITH TYPE 4 SAFETY BARS 36 IN. DIAM. | D149: G2 | E149: STANDARD ITEM | F149: DRAINAGE | G149: 4 | H149: 258 | I149: C
A150: 0974 | B150: EACH | C150: TAPERED END SECTION WITH TYPE 3 SAFETY BARS 42 IN. DIAM. | D150: G2 | E150: STANDARD ITEM | F150: DRAINAGE | G150: 4 | H150: 260 | I150: C
A151: 0975 | B151: EACH | C151: TAPERED END SECTION WITH TYPE 4 SAFETY BARS 42 IN. DIAM. | D151: G2 | E151: STANDARD ITEM | F151: DRAINAGE | G151: 4 | H151: 262 | I151: C
A152: 0976 | B152: EACH | C152: TAPERED END SECTION WITH TYPE 3 SAFETY BARS 48 IN. DIAM. | D152: G2 | E152: STANDARD ITEM | F152: DRAINAGE | G152: 4 | H152: 264 | I152: C
A153: 0977 | B153: EACH | C153: TAPERED END SECTION WITH TYPE 4 SAFETY BARS 48 IN. DIAM. | D153: G2 | E153: STANDARD ITEM | F153: DRAINAGE | G153: 4 | H153: 272 | I153: C
A154: 0978 | B154: EACH | C154: TAPERED END SECTION WITH TYPE 3 SAFETY BARS 54 IN. DIAM. | D154: G2 | E154: STANDARD ITEM | F154: DRAINAGE | G154: 4 | H154: 274 | I154: C
A155: 0979 | B155: EACH | C155: TAPERED END SECTION WITH TYPE 4 SAFETY BARS 54 IN. DIAM. | D155: G2 | E155: STANDARD ITEM | F155: DRAINAGE | G155: 4 | H155: 276 | I155: C
A156: 0989 | B156: EACH | C156: TAPERED END SECTION WITH TYPE 4 SAFETY BARS 24 IN. SPAN | D156: G2 | E156: STANDARD ITEM | F156: DRAINAGE | G156: 4 | H156: 280 | I156: C
A157: 0990 | B157: EACH | C157: TAPERED END SECTION WITH TYPE 4 SAFETY BARS 28 IN. SPAN | D157: G2 | E157: STANDARD ITEM | F157: DRAINAGE | G157: 4 | H157: 282 | I157: C
A158: 0991 | B158: EACH | C158: TAPERED END SECTION WITH TYPE 3 SAFETY BARS 35 IN. SPAN | D158: G2 | E158: STANDARD ITEM | F158: DRAINAGE | G158: 4 | H158: 284 | I158: C
A159: 0992 | B159: EACH | C159: TAPERED END SECTION WITH TYPE 4 SAFETY BARS 35 IN. SPAN | D159: G2 | E159: STANDARD ITEM | F159: DRAINAGE | G159: 4 | H159: 286 | I159: C
A160: 0993 | B160: EACH | C160: TAPERED END SECTION WITH TYPE 3 SAFETY BARS 42 IN. SPAN | D160: G2 | E160: STANDARD ITEM | F160: DRAINAGE | G160: 4 | H160: 288 | I160: C
A161: 0994 | B161: EACH | C161: TAPERED END SECTION WITH TYPE 4 SAFETY BARS 42 IN. SPAN | D161: G2 | E161: STANDARD ITEM | F161: DRAINAGE | G161: 4 | H161: 290 | I161: C
A162: 0995 | B162: EACH | C162: TAPERED END SECTION WITH TYPE 3 SAFETY BARS 49 IN. SPAN | D162: G2 | E162: STANDARD ITEM | F162: DRAINAGE | G162: 4 | H162: 292 | I162: C
A163: 0996 | B163: EACH | C163: TAPERED END SECTION WITH TYPE 4 SAFETY BARS 49 IN. SPAN | D163: G2 | E163: STANDARD ITEM | F163: DRAINAGE | G163: 4 | H163: 293 | I163: C
A164: 0997 | B164: EACH | C164: TAPERED END SECTION WITH TYPE 3 SAFETY BARS 57 IN. SPAN | D164: G2 | E164: STANDARD ITEM | F164: DRAINAGE | G164: 4 | H164: 294 | I164: C
A165: 0998 | B165: EACH | C165: TAPERED END SECTION WITH TYPE 4 SAFETY BARS 57 IN. SPAN | D165: G2 | E165: STANDARD ITEM | F165: DRAINAGE | G165: 4 | H165: 295 | I165: C
A166: 0999 | B166: EACH | C166: TAPERED END SECTION WITH TYPE 3 SAFETY BARS 64 IN. SPAN | D166: G2 | E166: STANDARD ITEM | F166: DRAINAGE | G166: 4 | H166: 296 | I166: C
A167: 1000 | B167: EACH | C167: TAPERED END SECTION WITH TYPE 4 SAFETY BARS 64 IN. SPAN | D167: G2 | E167: STANDARD ITEM | F167: DRAINAGE | G167: 4 | H167: 297 | I167: C
A168: 1025 | B168: C.Y. | C168: DITCH EXCAVATION | D168: G2 | E168: STANDARD ITEM | F168: DRAINAGE | G168: 4 | H168: 188 | I168: E
A169: 1030 | B169: C.Y. | C169: DITCH EXCAVATION INCL. HAUL | D169: G2 | E169: STANDARD ITEM | F169: DRAINAGE | G169: 4 | H169: 190 | I169: E
A170: 1035 | B170: C.Y. | C170: CHANNEL EXCAVATION | D170: J6 | E170: STANDARD ITEM | F170: DRAINAGE | G170: 4 | H170: 192 | I170: E
A171: 1040 | B171: C.Y. | C171: CHANNEL EXCAVATION INCL. HAUL | D171: J6 | E171: STANDARD ITEM | F171: DRAINAGE | G171: 4 | H171: 193 | I171: E
A172: 1046 | B172: EACH | C172: CONCRETE INLET | D172: G2 | E172: STANDARD ITEM | F172: DRAINAGE | G172: 4 | H172: 194 | I172: C
A173: 1052 | B173: EACH | C173: FRAME AND VANED GRATES FOR GRATE INLET TYPE 2 | D173: G2 | E173: STANDARD ITEM | F173: DRAINAGE | G173: 4 | H173: 197 | I173: C
A174: 1053 | B174: EACH | C174: GRATE INLET TYPE 1 | D174: G2 | E174: STANDARD ITEM | F174: DRAINAGE | G174: 4 | H174: 195 | I174: C
A175: 1054 | B175: EACH | C175: GRATE INLET TYPE 2 | D175: G2 | E175: STANDARD ITEM | F175: DRAINAGE | G175: 4 | H175: 196 | I175: C
A176: 1058 | B176: EACH | C176: DROP INLET TYPE 1 | D176: G2 | E176: STANDARD ITEM | F176: DRAINAGE | G176: 4 | H176: 198 | I176: C
A177: 1059 | B177: EACH | C177: DROP INLET TYPE 2 | D177: G2 | E177: STANDARD ITEM | F177: DRAINAGE | G177: 4 | H177: 199 | I177: C
A178: 1062 | B178: EACH | C178: PRECAST CONCRETE DRYWELL | D178: G2 | E178: STANDARD ITEM | F178: DRAINAGE | G178: 4 | H178: 200 | I178: C
A179: 1063 | B179: EACH | C179: COMBINATION INLET | D179: G2 | E179: STANDARD ITEM | F179: DRAINAGE | G179: 4 | H179: 201 | I179: C
A180: 1065 | B180: L.F. | C180: CEMENT CONC. GUTTER | D180: C8 | E180: STANDARD ITEM | F180: DRAINAGE | G180: 4 | H180: 202 | I180: E
A181: 1066 | B181: L.F. | C181: ASPHALT CONC. GUTTER | D181: A2 | E181: STANDARD ITEM | F181: DRAINAGE | G181: 4 | H181: 204 | I181: E
A182: 1068 | B182: TON | C182: FILTER BLANKET | D182: G2 | E182: STANDARD ITEM | F182: DRAINAGE | G182: 4 | H182: 212 | I182: E
A183: 1069 | B183: C.Y. | C183: FILTER BLANKET | D183: G2 | E183: STANDARD ITEM | F183: DRAINAGE | G183: 4 | H183: 210 | I183: E
A184: 1070 | B184: L.F. | C184: CEMENT CONC. SPILLWAY | D184: C8 | E184: STANDARD ITEM | F184: DRAINAGE | G184: 4 | H184: 206 | I184: E
A185: 1071 | B185: L.F. | C185: ASPHALT CONC. SPILLWAY | D185: A2 | E185: STANDARD ITEM | F185: DRAINAGE | G185: 4 | H185: 208 | I185: E
A186: 1072 | B186: C.Y. | C186: HAND PLACED RIPRAP | D186: R0 | E186: STANDARD ITEM | F186: DRAINAGE | G186: 4 | H186: 224 | I186: E
A187: 1073 | B187: TON | C187: LIGHT LOOSE RIPRAP | D187: R0 | E187: STANDARD ITEM | F187: DRAINAGE | G187: 4 | H187: 226 | I187: E
A188: 1074 | B188: C.Y. | C188: LIGHT LOOSE RIPRAP | D188: R0 | E188: STANDARD ITEM | F188: DRAINAGE | G188: 4 | H188: 228 | I188: E
A189: 1075 | B189: TON | C189: HEAVY LOOSE RIPRAP | D189: R0 | E189: STANDARD ITEM | F189: DRAINAGE | G189: 4 | H189: 230 | I189: E
A190: 1076 | B190: C.Y. | C190: HEAVY LOOSE RIPRAP | D190: R0 | E190: STANDARD ITEM | F190: DRAINAGE | G190: 4 | H190: 232 | I190: E
A191: 1077 | B191: TON | C191: 8 IN. QUARRY ROCK | D191: R0 | E191: REQUIRES SPECIAL PROV. | F191: DRAINAGE | G191: 4 | H191: 214 | I191: E
A192: 1080 | B192: L.F. | C192: RELAYING | D192: G2 | E192: STANDARD ITEM | F192: DRAINAGE | G192: 4 | H192: 240 | I192: E
A193: 1085 | B193: C.Y. | C193: QUARRY SPALLS | D193: R0 | E193: STANDARD ITEM | F193: DRAINAGE | G193: 4 | H193: 236 | I193: E
A194: 1086 | B194: TON | C194: QUARRY SPALLS | D194: R0 | E194: STANDARD ITEM | F194: DRAINAGE | G194: 4 | H194: 238 | I194: E
A195: 1091 | B195: L.F. | C195: SAFETY BARS FOR CULVERT PIPE TYPE 1 | D195: G2 | E195: STANDARD ITEM | F195: DRAINAGE | G195: 4 | H195: 242 | I195: E
A196: 1092 | B196: L.F. | C196: SAFETY BARS FOR CULVERT PIPE TYPE 2 | D196: G2 | E196: STANDARD ITEM | F196: DRAINAGE | G196: 4 | H196: 244 | I196: E
A197: 1093 | B197: TON | C197: STREAMBED SEDIMENT | D197: G2 | E197: GSP ITEM | F197: DRAINAGE | G197: 4 | H197: 217 | I197: E
A198: 1094 | B198: TON | C198: STREAMBED COBBLES | D198: G2 | E198: GSP ITEM | F198: DRAINAGE | G198: 4 | H198: 218 | I198: E
A199: 1095 | B199: C.Y. | C199: STREAMBED SEDIMENT | D199: G2 | E199: GSP ITEM | F199: DRAINAGE | G199: 4 | H199: 219 | I199: E
A200: 1096 | B200: C.Y. | C200: STREAMBED COBBLES | D200: G2 | E200: GSP ITEM | F200: DRAINAGE | G200: 4 | H200: 220 | I200: E
... 2999 more rows

Sheet Quantities
A1: Asphalt
B2: New Area
C3: 116402 | D3: sf
B4: Patch Area
C5: =10*(18+12+10+5) -> 450 | D5: sf
B6: 4" HMA
C7: =(C3+C5)*0.33/27 -> 1428.191111 | D7: cy
C8: =C7*2.05 -> 2927.791778 | D8: ton
A10: Sidewalk
B11: Area
C12: 3125 | D12: sy
A14: Curb and Gutter
B16: Length
C17: 4900 | D17: lf
A19: Agregate
B20: 9" Roadway Basecourse
C21: =0.75*C3/27 -> 3233.388889 | D21: cy
C22: =C21*1.85 -> 5981.769444 | D22: ton
B23: 2" sidewalk topcourse
C24: =C12*9*0.167/27 -> 173.9583333 | D24: cy
C25: =C24*1.85 -> 321.8229167 | D25: ton
A27: Sawcutting
B28: Longitudinal Joint
C29: =4048.42-2100+10*4 -> 1988.42 | D29: lf
B30: Lateral Joint
C31: =24+22+2*(18+12+10+5) -> 136 | D31: lf
A33: Remove and stockpile top layer of sandy loam
B34: Depth
C35: 0.5 | D35: ft
B36: Volume
C37: =SUM(C3,C12*9,C53)*C35/27 -> 3266.240741 | D37: cy
A39: Roadway Excavation
B40: Roadway
C41: =C3*1.083/27 -> 4669.013556 | D41: cy
B42: Sidewalk
C43: =(C12*9)*0.5/27 -> 520.8333333 | D43: cy
B44: Rain Garden
C45: =C53*((1.5+2.5)/2)/27 -> 2359.259259 | D45: cy
B46: TOTAL | E46: Assume 50% reduction factor
C47: =SUM(C41:C45) -> 7549.106148 | D47: cy | F47: =C47*0.5 -> 3774.553074
A49: Rain Gardens
B50: Length
C51: 4900 | D51: lf
B52: Area
C53: =6.5*C51 -> 31850 | D53: sf
B54: Mitigated soil | E54: Use 55/45 mix with compost
C55: =C53*1.5/27 -> 1769.444444 | D55: cy | F55: =C55*0.45 -> 796.25 | G55: cy (compost) | I55: 300 cy supplied by COA
B56: Quarry Spalls | F56: =C55*0.55 -> 973.1944444 | G56: cy(Topsoil Type B)
C57: =C53*0.67/27*1.85 -> 1462.150926 | D57: ton
A59: Site Restoration
B60: Length
C61: =C12*9/5 -> 5625 | D61: lf
B62: Volume
C63: =C61*2*0.33/27 -> 137.5 | D63: cy | E63: Type B Topsoil
A64: Paint lines
B65: 42+41 to 54+57
C66: =4*(5457-4241)+1 -> 4865 | D66: lf
B67: 39+20 to 42+41
C68: =(4120-3920)*3+80+(4241-4120) -> 801 | D68: lf
B69: 30+45 to 39+20
C70: =(3920-3045)*4 -> 3500 | D70: lf
B71: 27+15 to 30+45
C72: =(2915-2715)*3+80+(3045-2915) -> 810 | D72: lf
B73: 22+80 to 27+15
C74: =(2715-2280)*4 -> 1740 | D74: lf
B75: 20+80 to 22+80
C76: =(2280-2080)*3+80 -> 680 | D76: lf
B77: 14+80 to 20+80
C78: =(2080-1480)*2 -> 1200 | D78: lf
B79: 10+91 to 13+43
C80: =(1343-1091)*2 -> 504 | D80: lf
B81: TOTAL | C81: =SUM(C66:C80) -> 14100 | D81: lf
A83: Crosswalks
B84: Length
C85: 632 | D85: lf
B86: Width
C87: 8 | D87: ft
B88: Striping area
C89: =C85/7*(2*C87) -> 1444.571429 | D89: sf
A91: Planing Existing Pavement
B92: length
C93: =4047-2100 -> 1947 | D93: lf
B94: width
C95: 6 | D95: ft
B96: Long Area
C97: =C93*C95 -> 11682 | D97: sf
B98: Trans Area
C99: =20*22 -> 440 | D99: sf
B100: TOTAL AREA
C101: =(C97+C99)/9 -> 1346.888889 | D101: sy
A103: Overlay Pavement
B104: Area
C105: =C93*22 -> 42834 | D105: sf
B106: Depth
C107: 2 | D107: in
B108: Volume
C109: =C105*(C107/12)/27*2.05 -> 542.0351852 | D109: tons
